{"text_format":"1","workbook":"xlsx","n_sheets":4,"sheets":["プルダウン","【実績用】勤務形態一覧表（児発事業所・放デイ用）","各種ボタン解説","プルダウンリスト"],"not_rendered":{"charts":0,"images":0,"macros":1,"external_links":0,"defined_names":0,"comments":1,"pivot_tables":0},"unopened":[],"bounds":{"document_bytes":16777216,"sheet_cells":100000,"rows_first":2000,"rows_last":500,"rows_between":2000,"halvings":0,"cell_chars":16384,"cell_head_chars":4096},"cells_cut":0,"cells_raw":0,"read":"whole","date_system":"1900"}

{"sheet":"プルダウン","index":0,"n_rows":5,"n_cols":4,"rows_kept":5,"cut":false,"hidden":true,"merged":[]}
[null,null,"児童指導員等加配加算","専門的支援加算"]
[null,"開始月","理学療法士等","理学療法士等"]
[null,"欠如解消月","児童指導員等","児童指導員"]
[null,null,"その他従業者"]
[null,null,"保育士"]

{"sheet":"【実績用】勤務形態一覧表（児発事業所・放デイ用）","index":1,"n_rows":188,"n_cols":81,"rows_kept":188,"cut":false,"hidden":false,"merged":[[152,24,152,46],[152,1,152,23],[150,24,150,46],[150,1,150,23],[149,24,149,46],[149,1,149,23],[151,1,151,23],[151,24,151,46],[38,68,40,68],[38,69,40,69],[38,70,40,70],[120,2,120,21],[121,2,121,21],[121,53,121,54],[69,59,69,61],[70,0,70,21],[71,0,71,21],[72,11,72,21],[1,43,1,48],[12,54,12,58],[13,54,13,58],[14,54,14,58],[15,54,15,58],[8,54,8,58],[7,54,7,58],[9,54,9,58],[15,46,15,48],[2,46,2,48],[2,59,2,62],[2,54,2,58],[3,54,3,58],[8,59,8,62],[9,59,9,62],[14,46,14,48],[10,46,10,48],[11,46,11,48],[12,46,12,48],[13,46,13,48],[16,46,16,48],[17,46,17,48],[18,46,18,48],[3,59,3,62],[4,59,4,62],[5,59,5,62],[6,59,6,62],[7,59,7,62],[8,46,8,48],[9,46,9,48],[3,46,3,48],[4,46,4,48],[5,46,5,48],[6,46,6,48],[7,46,7,48],[14,59,14,62],[15,59,15,62],[10,54,10,58],[11,54,11,58],[6,54,6,58],[5,54,5,58],[10,59,10,62],[11,59,11,62],[12,59,12,62],[13,59,13,62],[17,43,17,45],[18,43,18,45],[4,54,4,58],[16,54,16,58],[17,54,17,58],[16,59,16,62],[17,59,17,62],[11,43,11,45],[12,43,12,45],[13,43,13,45],[15,43,15,45],[16,43,16,45],[5,43,5,45],[6,43,6,45],[7,43,7,45],[8,43,8,45],[9,43,9,45],[10,43,10,45],[163,34,163,35],[42,0,42,21],[2,43,2,45],[3,43,3,45],[4,43,4,45],[111,0,111,61],[112,0,113,61],[114,0,115,61],[116,0,116,61],[14,43,14,45],[72,56,73,57],[72,58,73,59],[72,60,73,61],[73,11,73,21],[76,11,76,21],[53,59,53,61],[69,0,69,21],[69,53,69,58],[54,56,54,58],[56,8,56,10],[53,0,53,4],[53,5,53,7],[53,8,53,10],[53,11,53,16],[53,53,53,55],[53,56,53,58],[51,59,51,61],[52,0,52,4],[52,5,52,7],[52,8,52,10],[52,11,52,16],[52,53,52,55],[52,56,52,58],[52,59,52,61],[51,0,51,4],[51,5,51,7],[51,8,51,10],[51,11,51,16],[51,53,51,55],[51,56,51,58],[49,59,49,61],[50,0,50,4],[50,5,50,7],[50,8,50,10],[50,11,50,16],[50,53,50,55],[50,56,50,58],[50,59,50,61],[49,0,49,4],[49,5,49,7],[49,8,49,10],[49,11,49,16],[49,53,49,55],[49,56,49,58],[1,0,1,30],[2,0,9,0],[2,1,2,22],[2,23,2,30],[3,1,3,22],[3,23,3,30],[4,1,4,22],[4,23,4,30],[5,1,5,22],[5,23,5,30],[6,1,6,22],[6,23,6,24],[6,26,6,27],[6,29,6,30],[7,1,7,22],[7,23,7,30],[8,1,8,22],[8,23,8,30],[9,1,9,22],[9,23,9,30],[10,0,10,30],[11,0,14,0],[11,1,11,22],[11,23,11,30],[12,1,12,22],[12,23,12,30],[13,1,13,22],[13,23,13,30],[14,1,14,22],[14,23,14,30],[15,0,15,30],[16,0,18,0],[16,1,16,22],[16,23,16,30],[17,1,17,22],[17,23,17,30],[18,1,18,22],[18,23,18,30],[19,0,19,30],[20,1,20,22],[20,23,20,30],[21,0,21,30],[22,1,22,22],[22,23,22,30],[23,1,23,22],[23,23,23,30],[24,1,24,22],[24,23,24,30],[25,1,25,22],[25,23,25,30],[26,1,26,22],[26,23,26,30],[27,1,27,22],[27,23,27,30],[28,1,28,22],[28,23,28,30],[29,30,29,31],[31,0,31,5],[31,6,31,61],[32,12,32,40],[32,41,32,42],[32,46,32,47],[34,0,34,20],[34,21,34,34],[34,35,34,42],[34,43,34,61],[35,0,35,2],[35,3,35,4],[35,5,35,8],[35,9,35,10],[35,11,35,14],[35,15,35,21],[36,0,36,4],[36,5,36,11],[36,12,36,17],[36,18,36,19],[36,20,36,21],[36,22,36,26],[35,22,35,26],[35,27,35,35],[35,36,35,43],[35,44,35,61],[36,47,36,52],[36,53,36,58],[36,59,36,61],[37,0,37,14],[37,15,37,28],[37,29,37,35],[37,36,37,61],[36,27,36,28],[36,29,36,33],[36,34,36,35],[36,36,36,39],[36,40,36,41],[36,42,36,46],[38,0,40,4],[38,5,38,10],[38,11,40,16],[38,17,40,17],[38,18,40,18],[38,19,40,19],[38,66,40,66],[38,67,40,67],[39,5,40,7],[39,8,40,10],[38,53,40,55],[38,56,40,58],[38,59,40,61],[38,62,40,62],[38,64,40,64],[38,65,40,65],[43,8,43,10],[43,11,43,16],[43,53,43,55],[43,56,43,58],[43,59,43,61],[38,43,38,49],[38,50,38,52],[41,0,41,21],[38,20,40,20],[38,21,40,21],[38,22,38,28],[38,29,38,35],[38,63,40,63],[38,36,38,42],[44,0,44,4],[44,5,44,7],[44,8,44,10],[44,11,44,16],[44,53,44,55],[44,56,44,58],[44,59,44,61],[43,0,43,4],[43,5,43,7],[46,56,46,58],[46,59,46,61],[45,0,45,4],[45,5,45,7],[45,8,45,10],[45,11,45,16],[45,53,45,55],[45,56,45,58],[47,8,47,10],[47,11,47,16],[47,53,47,55],[47,56,47,58],[45,59,45,61],[46,0,46,4],[46,5,46,7],[46,8,46,10],[46,11,46,16],[46,53,46,55],[47,59,47,61],[48,0,48,4],[48,5,48,7],[48,8,48,10],[48,11,48,16],[48,53,48,55],[48,56,48,58],[48,59,48,61],[47,0,47,4],[47,5,47,7],[55,56,55,58],[55,59,55,61],[54,0,54,4],[54,5,54,7],[54,8,54,10],[54,11,54,16],[54,53,54,55],[56,11,56,16],[56,53,56,55],[56,56,56,58],[54,59,54,61],[55,0,55,4],[55,5,55,7],[55,8,55,10],[55,11,55,16],[55,53,55,55],[56,59,56,61],[57,0,57,4],[57,5,57,7],[57,8,57,10],[57,11,57,16],[57,53,57,55],[57,56,57,58],[57,59,57,61],[56,0,56,4],[56,5,56,7],[59,56,59,58],[59,59,59,61],[58,0,58,4],[58,5,58,7],[58,8,58,10],[58,11,58,16],[58,53,58,55],[58,56,58,58],[60,8,60,10],[60,11,60,16],[60,53,60,55],[60,56,60,58],[58,59,58,61],[59,0,59,4],[59,5,59,7],[59,8,59,10],[59,11,59,16],[59,53,59,55],[60,59,60,61],[61,0,61,4],[61,5,61,7],[61,8,61,10],[61,11,61,16],[61,53,61,55],[61,56,61,58],[61,59,61,61],[60,0,60,4],[60,5,60,7],[63,56,63,58],[63,59,63,61],[62,0,62,4],[62,5,62,7],[62,8,62,10],[62,11,62,16],[62,53,62,55],[64,59,64,61],[62,56,62,58],[64,8,64,10],[64,11,64,16],[64,53,64,55],[64,56,64,58],[62,59,62,61],[65,11,65,16],[65,53,65,55],[65,56,65,58],[63,0,63,4],[63,5,63,7],[63,8,63,10],[63,11,63,16],[63,53,63,55],[65,59,65,61],[64,0,64,4],[64,5,64,7],[66,53,66,58],[66,59,66,61],[67,59,67,61],[67,53,67,58],[65,0,65,4],[65,5,65,7],[65,8,65,10],[68,0,68,13],[68,14,68,15],[68,16,68,21],[68,53,68,58],[68,59,68,61],[67,38,67,52],[73,62,73,63],[74,11,74,21],[74,53,78,55],[74,56,78,57],[74,58,78,59],[74,60,78,61],[77,11,77,21],[77,62,77,63],[78,11,78,21],[75,11,75,21],[79,11,79,21],[79,53,81,57],[79,58,81,59],[79,60,81,61],[80,11,80,21],[81,11,81,21],[79,22,79,52],[82,0,82,21],[82,53,84,57],[82,58,84,59],[82,60,84,61],[83,0,84,12],[83,13,83,17],[83,20,83,21],[83,22,84,22],[83,23,84,23],[83,24,84,24],[83,36,84,36],[83,25,84,25],[83,26,84,26],[83,27,84,27],[83,28,84,28],[83,29,84,29],[83,30,84,30],[83,38,84,38],[83,39,84,39],[83,40,84,40],[83,41,84,41],[83,42,84,42],[83,31,84,31],[83,32,84,32],[83,33,84,33],[83,34,84,34],[83,35,84,35],[83,52,84,52],[84,13,84,17],[84,20,84,21],[83,43,84,43],[83,44,84,44],[83,45,84,45],[83,46,84,46],[83,47,84,47],[83,48,84,48],[83,37,84,37],[85,0,86,12],[85,13,85,17],[85,20,85,21],[85,22,86,22],[85,23,86,23],[85,24,86,24],[85,25,86,25],[85,26,86,26],[85,27,86,27],[85,28,86,28],[85,29,86,29],[85,30,86,30],[85,31,86,31],[85,32,86,32],[85,33,86,33],[85,34,86,34],[85,35,86,35],[85,36,86,36],[85,46,86,46],[85,47,86,47],[85,48,86,48],[85,37,86,37],[85,38,86,38],[85,39,86,39],[85,40,86,40],[85,41,86,41],[85,42,86,42],[92,53,92,54],[93,53,93,54],[94,53,94,54],[85,52,86,52],[86,13,86,17],[86,20,86,21],[87,0,87,21],[85,43,86,43],[85,44,86,44],[85,45,86,45],[123,0,123,47],[124,0,124,1],[124,2,124,47],[125,0,126,1],[125,2,125,47],[126,2,126,47],[127,0,128,1],[127,2,127,47],[128,2,128,47],[129,0,130,1],[129,2,129,47],[130,2,130,47],[131,0,131,1],[131,2,131,47],[132,0,133,1],[132,2,132,47],[133,2,133,47],[134,0,135,1],[134,2,134,47],[135,2,135,47],[136,0,137,1],[136,2,136,47],[137,2,137,47],[138,0,139,1],[138,2,138,47],[139,2,139,47],[140,0,141,1],[140,2,140,47],[141,2,141,47],[142,0,143,1],[142,2,142,47],[143,2,143,47],[144,0,145,1],[144,2,144,47],[145,2,145,47],[146,1,146,23],[146,24,146,46],[148,1,148,23],[148,24,148,46],[172,9,172,12],[173,9,173,12],[153,1,153,23],[153,24,153,46],[154,1,154,23],[154,24,154,46],[168,25,168,26],[156,0,157,31],[164,34,164,35],[159,34,159,35],[90,19,90,21],[118,0,119,61],[85,53,87,57],[85,58,87,59],[85,60,87,61],[89,13,92,18],[93,13,94,18],[89,53,89,54],[90,53,90,54],[91,53,91,54],[89,0,94,12],[91,19,91,21],[92,19,92,21],[96,53,96,54],[97,53,97,54],[98,19,98,21],[98,53,98,54],[93,19,93,21],[94,19,94,21],[89,19,89,21],[117,0,117,61],[103,0,103,61],[104,0,104,61],[105,0,106,61],[107,0,108,61],[99,13,100,18],[110,0,110,61],[99,19,99,21],[99,53,99,54],[100,19,100,21],[100,53,100,54],[95,0,100,12],[95,13,98,18],[95,19,95,21],[95,53,95,54],[96,19,96,21],[97,19,97,21]]}
["管理者・従業者の勤務の体制及び勤務形態一覧表（児童発達支援【センターを除く】・放課後等デイサービス用）　事前入力シート"]
["　Ⅰ　事業所の基本情報について",null,null,null,null,null,null,null,null,null,null,null,null,null,null,null,null,null,null,null,null,null,null,null,null,null,null,null,null,null,null,null,null,null,null,null,null,null,null,null,null,null,null,"祝　日　リ　ス　ト"]
[null,"（1）　事業所・施設名を入力してください。",null,null,null,null,null,null,null,null,null,null,null,null,null,null,null,null,null,null,null,null,null,null,null,null,null,null,null,null,null,null,null,null,null,null,{"$f":"IF(X3=\"\",\"←入力されていません\",\"\")","v":"←入力されていません"},null,null,null,null,null,null,"2023-01-01",null,null,"元日"]
[null,"（２）　本事業所の指定年月日を入力してください。　（令和４年７月１日の場合「R4.7.1」）",null,null,null,null,null,null,null,null,null,null,null,null,null,null,null,null,null,null,null,null,null,null,null,null,null,null,null,null,null,null,null,null,null,null,{"$f":"IF(X4=\"\",\"←入力されていません\",\"\")","v":"←入力されていません"},null,null,null,null,null,null,"2023-01-02",null,null,"休日"]
[null,"（３）　サービス種別を選択してください。",null,null,null,null,null,null,null,null,null,null,null,null,null,null,null,null,null,null,null,null,null,null,null,null,null,null,null,null,null,null,null,null,null,null,{"$f":"IF(X5=\"\",\"←入力されていません\",\"\")","v":"←入力されていません"},null,null,null,null,null,null,"2023-01-09",null,null,"成人の日"]
[null,"（４）　主たる障がい種別を選択してください。",null,null,null,null,null,null,null,null,null,null,null,null,null,null,null,null,null,null,null,null,null,"重症心身障がい児以外",null,null,null,null,null,null,null,null,null,null,null,null,"",null,null,null,null,null,null,"2023-02-11",null,null,"建国記念の日"]
[null,"（５）　今回の勤務形態一覧表の対象月を選択してください。",null,null,null,null,null,null,null,null,null,null,null,null,null,null,null,null,null,null,null,null,null,"令和",null,null,"年",null,null,"月分",null,null,null,null,null,null,{"$f":"IF(OR(Z7=\"\",AC7=\"\"),\"←入力されていません\",\"\")","v":"←入力されていません"},null,null,null,null,null,null,"2023-02-23",null,null,"天皇誕生日"]
[null,"（６）　運営規程に定める定員を入力してください。",null,null,null,null,null,null,null,null,null,null,null,null,null,null,null,null,null,null,null,null,null,null,null,null,null,null,null,null,null,"名",null,null,null,null,"←入力されていません",null,null,null,null,null,null,"2023-03-21",null,null,"春分の日"]
[null,"（７）　法人（会社）が定める就業規則における常勤職員が１週間に勤務すべき時間を入力してください。",null,null,null,null,null,null,null,null,null,null,null,null,null,null,null,null,null,null,null,null,null,null,null,null,null,null,null,null,null,"時間（週）",null,null,null,null,"←入力されていません",null,null,null,null,null,null,"2023-04-29",null,null,"昭和の日"]
[null,"（８）　本事業所の今月の第１週から第４週までの開所日数を入力してください。（【例】週６日開所の事業所の場合『24』等）",null,null,null,null,null,null,null,null,null,null,null,null,null,null,null,null,null,null,null,null,null,null,null,null,null,null,null,null,null,"日（月）",null,null,null,null,null,null,null,null,null,null,null,"2023-05-03",null,null,"憲法記念日"]
["　Ⅱ　事業所の常勤職員の実働時間及びサービス提供時間について",null,null,null,null,null,null,null,null,null,null,null,null,null,null,null,null,null,null,null,null,null,null,null,null,null,null,null,null,null,null,null,null,null,null,null,null,null,null,null,null,null,null,"2023-05-04",null,null,"みどりの日"]
[null,"（１）　運営規程に定める学校営業日の営業時間の内、常勤職員の実働時間を入力してください。",null,null,null,null,null,null,null,null,null,null,null,null,null,null,null,null,null,null,null,null,null,null,null,null,null,null,null,null,null,"時間（日）",null,null,null,null,"←入力されていません",null,null,null,null,null,null,"2023-05-05",null,null,"こどもの日"]
[null,"（２）　運営規程に定める学校休業日の営業時間の内、常勤職員の実働時間を入力してください。",null,null,null,null,null,null,null,null,null,null,null,null,null,null,null,null,null,null,null,null,null,null,null,null,null,null,null,null,null,"時間（日）",null,null,null,null,"←入力されていません",null,null,null,null,null,null,"2023-07-17",null,null,"海の日"]
[null,"（３）　運営規程に定める学校営業日のサービス提供時間を入力してください。",null,null,null,null,null,null,null,null,null,null,null,null,null,null,null,null,null,null,null,null,null,null,null,null,null,null,null,null,null,"時間（日）",null,null,null,null,"←入力されていません",null,null,null,null,null,null,"2023-08-11",null,null,"山の日"]
[null,"（４）　運営規程に定める学校休業日のサービス提供時間を入力してください。",null,null,null,null,null,null,null,null,null,null,null,null,null,null,null,null,null,null,null,null,null,null,null,null,null,null,null,null,null,"時間（日）",null,null,null,null,"←入力されていません",null,null,null,null,null,null,"2023-09-18",null,null,"敬老の日"]
["　Ⅲ　事業所の定員超過日数について",null,null,null,null,null,null,null,null,null,null,null,null,null,null,null,null,null,null,null,null,null,null,null,null,null,null,null,null,null,null,null,null,null,null,null,null,null,null,null,null,null,null,"2023-09-23",null,null,"秋分の日"]
[null,"（１）　Ⅰの（５）で記載した月の前月の定員超過日数を選択してください。（「０日」の場合は「0」と入力）",null,null,null,null,null,null,null,null,null,null,null,null,null,null,null,null,null,null,null,null,null,null,null,null,null,null,null,null,null,"日（月）",null,null,null,null,"←入力されていません",null,null,null,null,null,null,"2023-10-09",null,null,"スポーツの日"]
[null,"（２）　Ⅰの（５）で記載した月の前々月の定員超過日数を選択してください。（「０日」の場合は「0」と入力）",null,null,null,null,null,null,null,null,null,null,null,null,null,null,null,null,null,null,null,null,null,null,null,null,null,null,null,null,null,"日（月）",null,"計",{"$f":"X17+X18+X19","v":0},"日","←入力されていません",null,null,null,null,null,null,"2023-11-03",null,null,"文化の日"]
[null,"（３）　Ⅰの（５）で記載した月の前々々月の定員超過日数を選択してください。（「０日」の場合は「0」と入力）",null,null,null,null,null,null,null,null,null,null,null,null,null,null,null,null,null,null,null,null,null,null,null,null,null,null,null,null,null,"日（月）",null,null,null,null,"←入力されていません",null,null,null,null,null,null,"2023-11-23",null,null,"勤労感謝の日"]
["　Ⅳ　医療的ケア児の受け入れ状況について（医療的ケア児の基本報酬を算定していない場合でも、医療的ケア児の受け入れがあれば、「あり」を選択してください。）"]
[null,"医療的ケア児の受け入れの有無について",null,null,null,null,null,null,null,null,null,null,null,null,null,null,null,null,null,null,null,null,null,null,null,null,null,null,null,null,null,null,null,null,null,null,{"$f":"IF(X21=\"\",\"←入力されていません\",\"\")","v":"←入力されていません"}]
["　Ⅴ　事業所の加算情報について　（以下の各種加算について加算の有無を選択してください。）"]
[null,"児童指導員等加配体制（算定していない場合は「なし」と入力）",null,null,null,null,null,null,null,null,null,null,null,null,null,null,null,null,null,null,null,null,null,null,null,null,null,null,null,null,null,null,null,null,null,null,"←入力されていません"]
[null,"専門的支援加算（算定していない場合は「なし」と入力）",null,null,null,null,null,null,null,null,null,null,null,null,null,null,null,null,null,null,null,null,null,null,null,null,null,null,null,null,null,null,null,null,null,null,"←入力されていません"]
[null,"福祉専門職配置等加算（算定していない場合は「なし」と入力）",null,null,null,null,null,null,null,null,null,null,null,null,null,null,null,null,null,null,null,null,null,null,null,null,null,null,null,null,null,null,null,null,null,null,"←入力されていません"]
[null,"強度行動加算体制（算定していない場合は「なし」と入力）",null,null,null,null,null,null,null,null,null,null,null,null,null,null,null,null,null,null,null,null,null,null,null,null,null,null,null,null,null,null,null,null,null,null,"←入力されていません"]
[null,"特別支援体制（算定していない場合は「なし」と入力）",null,null,null,null,null,null,null,null,null,null,null,null,null,null,null,null,null,null,null,null,null,null,null,null,null,null,null,null,null,null,null,null,null,null,"←入力されていません"]
[null,"医療的ケア基本報酬区分　※医療的ケア児の基本報酬を算定しているか　（算定していない場合は「なし」と入力）",null,null,null,null,null,null,null,null,null,null,null,null,null,null,null,null,null,null,null,null,null,null,null,null,null,null,null,null,null,null,null,null,null,null,"←入力されていません"]
[null,"看護職員加配加算　※非重心型事業所は「なし」を選択すること　（算定していない場合は「なし」と入力）",null,null,null,null,null,null,null,null,null,null,null,null,null,null,null,null,null,null,null,null,null,"なし",null,null,null,null,null,null,null,null,null,null,null,null,""]
[null,null,null,null,null,null,null,null,null,null,null,null,null,null,null,null,null,null,null,null,null,null,null,null,null,null,null,null,null,null,{"$f":"IF(AND(X23=\"なし\",X24=\"なし\",X29=\"なし\"),\"加配算定なし\",\"○\")","v":"○"},null,null,null,null,null,{"$f":"COUNTIF(AK3:AK29,\"←入力されていません\")","v":20}]
[]
["（参考様式２２）",null,null,null,null,null,{"$f":"IF(A147>=1,\"【要確認】下図のエラー判定表のいずれかの項目でエラーが発生しております。エラー内容を確認のうえ、エラーを解消してください。※（人員基準に関するエラーの場合）当該月について欠如に該当する可能性がございます。\",\"【OK】全てのエラーが解消されています。また、最低人員基準を満たしています。\")","v":"【OK】全てのエラーが解消されています。また、最低人員基準を満たしています。"}]
[null,null,null,null,null,null,"GA",null,null,null,null,null,"管理者・従業者の勤務の体制及び勤務形態一覧表（非重心型児童発達支援【センターを除く】・非重心型放課後等デイサービス用）",null,null,null,null,null,null,null,null,null,null,null,null,null,null,null,null,null,null,null,null,null,null,null,null,null,null,null,null,"令和",null,{"$f":"IF(Z7=\"\",\"\",Z7)","v":""},"年",{"$f":"IF(AC7=\"\",\"\",AC7)","v":""},"月分"]
[]
["支援の種類",null,null,null,null,null,null,null,null,null,null,null,null,null,null,null,null,null,null,null,null,{"$f":"IF(X5=\"\",\"\",X5)","v":""},null,null,null,null,null,null,null,null,null,null,null,null,null,"事業所・施設名",null,null,null,null,null,null,null,{"$f":"IF(X3=\"\",\"\",X3)","v":""}]
["定員",null,null,{"$f":"IF(X8=\"\",\"\",VALUE(X8))","v":""},null,"基準人員（日）",null,null,null,{"$f":"IF(D36=\"\",\"\",VALUE(IF(D36>=31,\"7\",IF(D36>=26,\"6\",IF(D36>=21,\"5\",IF(D36>=16,\"4\",IF(D36>=11,\"3\",\"2\")))))))","v":""},null,"施設等区分",null,null,null,{"$f":"IF(X14=\"\",\"\",IF(X14>=3,\"区分１\",\"区分２\"))","v":""},null,null,null,null,null,null,"主たる障害種別",null,null,null,null,{"$f":"X6","v":"重症心身障がい児以外"},null,null,null,null,null,null,null,null,"基準上の必要職員数",null,null,null,null,null,null,null,"管理者１名、児童発達支援管理責任者１名、児童指導員等２名"]
["該当する体制等",null,null,null,null,"児童指導員等加配加算",null,null,null,null,null,null,{"$f":"IF(X23=\"\",\"\",X23)","v":""},null,null,null,null,null,"専門的支援加算",null,{"$f":"IF(X24=\"\",\"\",X24)","v":""},null,"福祉専門職配置等加算",null,null,null,null,{"$f":"IF(X25=\"\",\"\",X25)","v":""},null,"強度行動障害加算体制",null,null,null,null,{"$f":"IF(X26=\"\",\"\",X26)","v":""},null,"特別支援体制",null,null,null,{"$f":"IF(X27=\"\",\"\",X27)","v":""},null,"医療的ケア基本報酬区分",null,null,null,null,{"$f":"IF(X28=\"\",\"\",X28)","v":""},null,null,null,null,null,null,null,null,null,null,null,{"$f":"IF(X29=\"\",\"\",X29)","v":"なし"}]
["障がい福祉サービス経験者に関する経過措置の適用",null,null,null,null,null,null,null,null,null,null,null,null,null,null,"R5.4.1以降、障がい福祉サービス経験者を基準人員に含めることはできない。",null,null,null,null,null,null,null,null,null,null,null,null,null,"看護職員の基準人員の員数への算入",null,null,null,null,null,null,{"$f":"IF(X21=\"\",\"\",IF(X21=\"なし\",\"本事業所は看護職員を基準人員とすることはできません\",\"本事業所は看護職員を基準人員とすることができます\"))","v":""}]
["職種",null,null,null,null,"勤務形態",null,null,null,null,null,"氏名",null,null,null,null,null,"兼務先及び\n兼務する職務の内容","基準\n人員\n可否","加配\n対象者","強度行動\n障害研修\n修了者等","福祉専門職\n配置等加算\n対象者","第１週",null,null,null,null,null,null,"第２週",null,null,null,null,null,null,"第３週",null,null,null,null,null,null,"第４週",null,null,null,null,null,null,"第5週",null,null,"5週の\n合計",null,null,"週平均の勤務時間",null,null,"常勤換算後の人数",null,null,"常勤\n判定","非常勤判定","所定時間外もしくは\n法定時間外","育児及び介護のための所定労働時間の短縮等の措置","当該従業員の所定労働時間（週）","当該従業員の所定労働時間\n（月）","直接支援員を含む常勤・兼務の有無","当該従業員の所定労働時間（週）","当該従業員の所定労働時間\n（月）"]
[null,null,null,null,null,"常勤又は\n非常勤",null,null,"専従又\nは兼務",null,null,null,null,null,null,null,null,null,null,null,null,null,1,2,3,4,5,6,7,8,9,10,11,12,13,14,15,16,17,18,19,20,21,22,23,24,25,26,27,28,29,30,31]
[null,null,null,null,null,null,null,null,null,null,null,null,null,null,null,null,null,null,null,null,null,null,{"$f":"AI162","v":"金"},{"$f":"IF(W41=\"月\",\"火\",IF(W41=\"火\",\"水\",IF(W41=\"水\",\"木\",IF(W41=\"木\",\"金\",IF(W41=\"金\",\"土\",IF(W41=\"土\",\"日\",IF(W41=\"日\",\"月\")))))))","v":"土"},{"$f":"IF(X41=\"月\",\"火\",IF(X41=\"火\",\"水\",IF(X41=\"水\",\"木\",IF(X41=\"木\",\"金\",IF(X41=\"金\",\"土\",IF(X41=\"土\",\"日\",IF(X41=\"日\",\"月\")))))))","v":"日"},"月","火","水","木","金","土","日","月","火","水","木","金","土","日","月","火","水","木","金","土","日","月","火","水",{"$f":"IF(AW41=\"月\",\"火\",IF(AW41=\"火\",\"水\",IF(AW41=\"水\",\"木\",IF(AW41=\"木\",\"金\",IF(AW41=\"金\",\"土\",IF(AW41=\"土\",\"日\",IF(AW41=\"日\",\"月\")))))))","v":"木"},{"$f":"IF(AX41=\"月\",\"火\",IF(AX41=\"火\",\"水\",IF(AX41=\"水\",\"木\",IF(AX41=\"木\",\"金\",IF(AX41=\"金\",\"土\",IF(AX41=\"土\",\"日\",IF(AX41=\"日\",\"月\")))))))","v":"金"},{"$f":"IF(AY41=\"月\",\"火\",IF(AY41=\"火\",\"水\",IF(AY41=\"水\",\"木\",IF(AY41=\"木\",\"金\",IF(AY41=\"金\",\"土\",IF(AY41=\"土\",\"日\",IF(AY41=\"日\",\"月\")))))))","v":"土"},{"$f":"IF(AZ41=\"月\",\"火\",IF(AZ41=\"火\",\"水\",IF(AZ41=\"水\",\"木\",IF(AZ41=\"木\",\"金\",IF(AZ41=\"金\",\"土\",IF(AZ41=\"土\",\"日\",IF(AZ41=\"日\",\"月\")))))))","v":"日"},null,null,null,null,null,null,null,null,null,null,null,null,null,null,null,null,null,null,null,null,null,null,null,null,null,null,null,"加配加算区分"]
["本行は非表示にしてください。（本行にカーソルを合わせて、［Ctrl］+［9］）",null,null,null,null,null,null,null,null,null,null,null,null,null,null,null,null,null,null,null,null,null,{"$f":"IF(W41=\"\",\"\",IF(COUNTIF($AR$3:$AT$19,W43)>0,\"休日\",IF(OR(W41=\"土\",W41=\"日\"),\"休日\",\"平日\")))","v":"平日"},{"$f":"IF(X41=\"\",\"\",IF(COUNTIF($AR$3:$AT$19,X43)>0,\"休日\",IF(OR(X41=\"土\",X41=\"日\"),\"休日\",\"平日\")))","v":"休日"},"休日","平日","平日","平日","平日","平日","休日","休日","平日","平日","平日","平日","平日","休日","休日","平日","平日","平日","平日","平日","休日","休日","平日","平日","平日",{"$f":"IF(AX41=\"\",\"\",IF(COUNTIF($AR$3:$AT$19,AX43)>0,\"休日\",IF(OR(AX41=\"土\",AX41=\"日\"),\"休日\",\"平日\")))","v":"平日"},{"$f":"IF(AY41=\"\",\"\",IF(COUNTIF($AR$3:$AT$19,AY43)>0,\"休日\",IF(OR(AY41=\"土\",AY41=\"日\"),\"休日\",\"平日\")))","v":"平日"},{"$f":"IF(AZ41=\"\",\"\",IF(COUNTIF($AR$3:$AT$19,AZ43)>0,\"休日\",IF(OR(AZ41=\"土\",AZ41=\"日\"),\"休日\",\"平日\")))","v":"休日"},{"$f":"IF(BA41=\"\",\"\",IF(COUNTIF($AR$3:$AT$19,BA43)>0,\"休日\",IF(OR(BA41=\"土\",BA41=\"日\"),\"休日\",\"平日\")))","v":"休日"}]
["本行は非表示にしてください。（本行にカーソルを合わせて、［Ctrl］+［9］）",null,null,null,null,null,null,null,null,null,null,null,null,null,null,null,null,null,null,null,null,null,{"$f":"DATE($AI$164,$AC$7,W40)","v":"2016-12-01"},"2016-12-02","2016-12-03","2016-12-04","2016-12-05","2016-12-06","2016-12-07","2016-12-08","2016-12-09","2016-12-10","2016-12-11","2016-12-12","2016-12-13","2016-12-14","2016-12-15","2016-12-16","2016-12-17","2016-12-18","2016-12-19","2016-12-20","2016-12-21","2016-12-22","2016-12-23","2016-12-24","2016-12-25","2016-12-26","2016-12-27","2016-12-28","2016-12-29","2016-12-30","2016-12-31"]
[null,null,null,null,null,null,null,null,null,null,null,null,null,null,null,null,null,null,null,null,null,null,null,null,null,null,null,null,null,null,null,null,null,null,null,null,null,null,null,null,null,null,null,null,null,null,null,null,null,null,null,null,null,{"$f":"SUM(W44:BA44)","v":0},null,null,{"$f":"BB44/4","v":0},null,null,{"$f":"BE44/$BB$68","v":{"$error":"#DIV/0!"}},null,null,{"$f":"IF(OR(F44=\"非常勤\",F44=\"\"),\"\",IF(AND(BQ44=\"あり\",BB44>=BS44),\"○\",IF(AND(BN44=\"あり\",BB44>=BP44),\"○\",IF(BH44>=1,\"○\",\"×\"))))","v":""},{"$f":"IF(OR(F44=\"常勤\",F44=\"\"),\"\",IF(1<=BH44,\"×\",\"○\"))","v":""},null,null,null,{"$f":"VALUE(BO44*4)","v":0},null,null,{"$f":"VALUE(BR44*4)","v":0}]
[null,null,null,null,null,null,null,null,null,null,null,null,null,null,null,null,null,null,null,null,null,null,null,null,null,null,null,null,null,null,null,null,null,null,null,null,null,null,null,null,null,null,null,null,null,null,null,null,null,null,null,null,null,{"$f":"SUM(W45:BA45)","v":0},null,null,0,null,null,{"$f":"BE45/$BB$68","v":{"$error":"#DIV/0!"}},null,null,{"$f":"IF(OR(F45=\"非常勤\",F45=\"\"),\"\",IF(AND(BQ45=\"あり\",BB45>=BS45),\"○\",IF(AND(BN45=\"あり\",BB45>=BP45),\"○\",IF(BH45>=1,\"○\",\"×\"))))","v":""},"",null,null,null,0,null,null,0]
[null,null,null,null,null,null,null,null,null,null,null,null,null,null,null,null,null,null,null,null,null,null,null,null,null,null,null,null,null,null,null,null,null,null,null,null,null,null,null,null,null,null,null,null,null,null,null,null,null,null,null,null,null,0,null,null,0,null,null,{"$error":"#DIV/0!"},null,null,{"$f":"IF(OR(F46=\"非常勤\",F46=\"\"),\"\",IF(AND(BQ46=\"あり\",BB46>=BS46),\"○\",IF(AND(BN46=\"あり\",BB46>=BP46),\"○\",IF(BH46>=1,\"○\",\"×\"))))","v":""},"",null,null,null,0,null,null,0,null,"基準の常勤職員としてカウント可能な時間数","基準","児童加配","専門的支援"]
[null,null,null,null,null,null,null,null,null,null,null,null,null,null,null,null,null,null,{"$f":"IF(A47=\"\",\"\",IF(AND(A47=\"看護職員\",$AK$38=\"本事業所は看護職員を基準人員とすることはできません\"),\"基準外\",IF(COUNTIF($J$160:$J$166,A47),\"基準\",\"基準外\")))","v":""},null,null,null,null,null,null,null,null,null,null,null,null,null,null,null,null,null,null,null,null,null,null,null,null,null,null,null,null,null,null,null,null,null,null,0,null,null,0,null,null,{"$error":"#DIV/0!"},null,null,{"$f":"IF(OR(F47=\"非常勤\",F47=\"\"),\"\",IF(AND(BQ47=\"あり\",BB47>=BS47),\"○\",IF(AND(BN47=\"あり\",BB47>=BP47),\"○\",IF(BH47>=1,\"○\",\"×\"))))","v":""},"",null,null,null,0,null,null,0,null,{"$f":"IF(AND(BK47=\"○\",A47=\"児童指導員\"),(Colorsum(W47:BA47,$AA$177)))+IF(AND(BK47=\"○\",A47=\"保育士\"),(Colorsum(W47:BA47,$AA$177)))","v":0},{"$f":"IF(F47=$S$160,IF(Colorsum(W47:BA47,$AA$177)>=1,IF(BQ47=\"あり\",BR47,IF(BN47=\"あり\",BO47,$BB$68))),\"\")","v":""},{"$f":"IF(Colorsum(W47:BA47,$AA$178)>=1,IF(BN47=\"あり\",BO47,$BB$68),\"\")","v":""},{"$f":"IF(Colorsum(W47:BA47,$AA$179)>=1,IF(BN47=\"あり\",BO47,$BB$68),\"\")","v":""},null,null,null,null,{"$f":"IF(A47=\"\",\"\",IF(U47=\"○\",VLOOKUP(A47,$J$176:$K$188,2,FALSE),VLOOKUP(A47,$J$160:$K$172,2,FALSE)))","v":""}]
[null,null,null,null,null,null,null,null,null,null,null,null,null,null,null,null,null,null,"",null,null,null,null,null,null,null,null,null,null,null,null,null,null,null,null,null,null,null,null,null,null,null,null,null,null,null,null,null,null,null,null,null,null,0,null,null,0,null,null,{"$error":"#DIV/0!"},null,null,{"$f":"IF(OR(F48=\"非常勤\",F48=\"\"),\"\",IF(AND(BQ48=\"あり\",BB48>=BS48),\"○\",IF(AND(BN48=\"あり\",BB48>=BP48),\"○\",IF(BH48>=1,\"○\",\"×\"))))","v":""},"",null,null,null,0,null,null,0,null,{"$f":"IF(AND(BK48=\"○\",A48=\"児童指導員\"),(Colorsum(W48:BA48,$AA$177)))+IF(AND(BK48=\"○\",A48=\"保育士\"),(Colorsum(W48:BA48,$AA$177)))","v":0},{"$f":"IF(F48=$S$160,IF(Colorsum(W48:BA48,$AA$177)>=1,IF(BQ48=\"あり\",BR48,IF(BN48=\"あり\",BO48,$BB$68))),\"\")","v":""},{"$f":"IF(Colorsum(W48:BA48,$AA$178)>=1,IF(BN48=\"あり\",BO48,$BB$68),\"\")","v":""},{"$f":"IF(Colorsum(W48:BA48,$AA$179)>=1,IF(BN48=\"あり\",BO48,$BB$68),\"\")","v":""},null,null,null,null,""]
[null,null,null,null,null,null,null,null,null,null,null,null,null,null,null,null,null,null,"",null,null,null,null,null,null,null,null,null,null,null,null,null,null,null,null,null,null,null,null,null,null,null,null,null,null,null,null,null,null,null,null,null,null,0,null,null,0,null,null,{"$error":"#DIV/0!"},null,null,"","",null,null,null,0,null,null,0,null,{"$f":"IF(AND(BK49=\"○\",A49=\"児童指導員\"),(Colorsum(W49:BA49,$AA$177)))+IF(AND(BK49=\"○\",A49=\"保育士\"),(Colorsum(W49:BA49,$AA$177)))","v":0},{"$f":"IF(F49=$S$160,IF(Colorsum(W49:BA49,$AA$177)>=1,IF(BQ49=\"あり\",BR49,IF(BN49=\"あり\",BO49,$BB$68))),\"\")","v":""},{"$f":"IF(Colorsum(W49:BA49,$AA$178)>=1,IF(BN49=\"あり\",BO49,$BB$68),\"\")","v":""},{"$f":"IF(Colorsum(W49:BA49,$AA$179)>=1,IF(BN49=\"あり\",BO49,$BB$68),\"\")","v":""},null,null,null,null,""]
[null,null,null,null,null,null,null,null,null,null,null,null,null,null,null,null,null,null,"",null,null,null,null,null,null,null,null,null,null,null,null,null,null,null,null,null,null,null,null,null,null,null,null,null,null,null,null,null,null,null,null,null,null,0,null,null,0,null,null,{"$error":"#DIV/0!"},null,null,"","",null,null,null,{"$f":"VALUE(BO50*4)","v":0},null,null,0,null,{"$f":"IF(AND(BK50=\"○\",A50=\"児童指導員\"),(Colorsum(W50:BA50,$AA$177)))+IF(AND(BK50=\"○\",A50=\"保育士\"),(Colorsum(W50:BA50,$AA$177)))","v":0},{"$f":"IF(F50=$S$160,IF(Colorsum(W50:BA50,$AA$177)>=1,IF(BQ50=\"あり\",BR50,IF(BN50=\"あり\",BO50,$BB$68))),\"\")","v":""},{"$f":"IF(Colorsum(W50:BA50,$AA$178)>=1,IF(BN50=\"あり\",BO50,$BB$68),\"\")","v":""},{"$f":"IF(Colorsum(W50:BA50,$AA$179)>=1,IF(BN50=\"あり\",BO50,$BB$68),\"\")","v":""},null,null,null,null,""]
[null,null,null,null,null,null,null,null,null,null,null,null,null,null,null,null,null,null,"",null,null,null,null,null,null,null,null,null,null,null,null,null,null,null,null,null,null,null,null,null,null,null,null,null,null,null,null,null,null,null,null,null,null,0,null,null,0,null,null,{"$error":"#DIV/0!"},null,null,"","",null,null,null,{"$f":"VALUE(BO51*4)","v":0},null,null,0,null,{"$f":"IF(AND(BK51=\"○\",A51=\"児童指導員\"),(Colorsum(W51:BA51,$AA$177)))+IF(AND(BK51=\"○\",A51=\"保育士\"),(Colorsum(W51:BA51,$AA$177)))","v":0},{"$f":"IF(F51=$S$160,IF(Colorsum(W51:BA51,$AA$177)>=1,IF(BQ51=\"あり\",BR51,IF(BN51=\"あり\",BO51,$BB$68))),\"\")","v":""},{"$f":"IF(Colorsum(W51:BA51,$AA$178)>=1,IF(BN51=\"あり\",BO51,$BB$68),\"\")","v":""},{"$f":"IF(Colorsum(W51:BA51,$AA$179)>=1,IF(BN51=\"あり\",BO51,$BB$68),\"\")","v":""},null,null,null,null,""]
[null,null,null,null,null,null,null,null,null,null,null,null,null,null,null,null,null,null,"",null,null,null,null,null,null,null,null,null,null,null,null,null,null,null,null,null,null,null,null,null,null,null,null,null,null,null,null,null,null,null,null,null,null,0,null,null,0,null,null,{"$error":"#DIV/0!"},null,null,"","",null,null,null,{"$f":"VALUE(BO52*4)","v":0},null,null,0,null,{"$f":"IF(AND(BK52=\"○\",A52=\"児童指導員\"),(Colorsum(W52:BA52,$AA$177)))+IF(AND(BK52=\"○\",A52=\"保育士\"),(Colorsum(W52:BA52,$AA$177)))","v":0},{"$f":"IF(F52=$S$160,IF(Colorsum(W52:BA52,$AA$177)>=1,IF(BQ52=\"あり\",BR52,IF(BN52=\"あり\",BO52,$BB$68))),\"\")","v":""},{"$f":"IF(Colorsum(W52:BA52,$AA$178)>=1,IF(BN52=\"あり\",BO52,$BB$68),\"\")","v":""},{"$f":"IF(Colorsum(W52:BA52,$AA$179)>=1,IF(BN52=\"あり\",BO52,$BB$68),\"\")","v":""},null,null,null,null,""]
[null,null,null,null,null,null,null,null,null,null,null,null,null,null,null,null,null,null,"",null,null,null,null,null,null,null,null,null,null,null,null,null,null,null,null,null,null,null,null,null,null,null,null,null,null,null,null,null,null,null,null,null,null,0,null,null,0,null,null,{"$error":"#DIV/0!"},null,null,"","",null,null,null,{"$f":"VALUE(BO53*4)","v":0},null,null,0,null,{"$f":"IF(AND(BK53=\"○\",A53=\"児童指導員\"),(Colorsum(W53:BA53,$AA$177)))+IF(AND(BK53=\"○\",A53=\"保育士\"),(Colorsum(W53:BA53,$AA$177)))","v":0},{"$f":"IF(F53=$S$160,IF(Colorsum(W53:BA53,$AA$177)>=1,IF(BQ53=\"あり\",BR53,IF(BN53=\"あり\",BO53,$BB$68))),\"\")","v":""},{"$f":"IF(Colorsum(W53:BA53,$AA$178)>=1,IF(BN53=\"あり\",BO53,$BB$68),\"\")","v":""},{"$f":"IF(Colorsum(W53:BA53,$AA$179)>=1,IF(BN53=\"あり\",BO53,$BB$68),\"\")","v":""},null,null,null,null,""]
[null,null,null,null,null,null,null,null,null,null,null,null,null,null,null,null,null,null,"",null,null,null,null,null,null,null,null,null,null,null,null,null,null,null,null,null,null,null,null,null,null,null,null,null,null,null,null,null,null,null,null,null,null,0,null,null,0,null,null,{"$error":"#DIV/0!"},null,null,"","",null,null,null,{"$f":"VALUE(BO54*4)","v":0},null,null,0,null,{"$f":"IF(AND(BK54=\"○\",A54=\"児童指導員\"),(Colorsum(W54:BA54,$AA$177)))+IF(AND(BK54=\"○\",A54=\"保育士\"),(Colorsum(W54:BA54,$AA$177)))","v":0},{"$f":"IF(F54=$S$160,IF(Colorsum(W54:BA54,$AA$177)>=1,IF(BQ54=\"あり\",BR54,IF(BN54=\"あり\",BO54,$BB$68))),\"\")","v":""},{"$f":"IF(Colorsum(W54:BA54,$AA$178)>=1,IF(BN54=\"あり\",BO54,$BB$68),\"\")","v":""},{"$f":"IF(Colorsum(W54:BA54,$AA$179)>=1,IF(BN54=\"あり\",BO54,$BB$68),\"\")","v":""},null,null,null,null,""]
[null,null,null,null,null,null,null,null,null,null,null,null,null,null,null,null,null,null,"",null,null,null,null,null,null,null,null,null,null,null,null,null,null,null,null,null,null,null,null,null,null,null,null,null,null,null,null,null,null,null,null,null,null,0,null,null,0,null,null,{"$error":"#DIV/0!"},null,null,"","",null,null,null,0,null,null,0,null,{"$f":"IF(AND(BK55=\"○\",A55=\"児童指導員\"),(Colorsum(W55:BA55,$AA$177)))+IF(AND(BK55=\"○\",A55=\"保育士\"),(Colorsum(W55:BA55,$AA$177)))","v":0},{"$f":"IF(F55=$S$160,IF(Colorsum(W55:BA55,$AA$177)>=1,IF(BQ55=\"あり\",BR55,IF(BN55=\"あり\",BO55,$BB$68))),\"\")","v":""},{"$f":"IF(Colorsum(W55:BA55,$AA$178)>=1,IF(BN55=\"あり\",BO55,$BB$68),\"\")","v":""},{"$f":"IF(Colorsum(W55:BA55,$AA$179)>=1,IF(BN55=\"あり\",BO55,$BB$68),\"\")","v":""},null,null,null,null,""]
[null,null,null,null,null,null,null,null,null,null,null,null,null,null,null,null,null,null,"",null,null,null,null,null,null,null,null,null,null,null,null,null,null,null,null,null,null,null,null,null,null,null,null,null,null,null,null,null,null,null,null,null,null,0,null,null,0,null,null,{"$error":"#DIV/0!"},null,null,"","",null,null,null,0,null,null,0,null,{"$f":"IF(AND(BK56=\"○\",A56=\"児童指導員\"),(Colorsum(W56:BA56,$AA$177)))+IF(AND(BK56=\"○\",A56=\"保育士\"),(Colorsum(W56:BA56,$AA$177)))","v":0},{"$f":"IF(F56=$S$160,IF(Colorsum(W56:BA56,$AA$177)>=1,IF(BQ56=\"あり\",BR56,IF(BN56=\"あり\",BO56,$BB$68))),\"\")","v":""},{"$f":"IF(Colorsum(W56:BA56,$AA$178)>=1,IF(BN56=\"あり\",BO56,$BB$68),\"\")","v":""},{"$f":"IF(Colorsum(W56:BA56,$AA$179)>=1,IF(BN56=\"あり\",BO56,$BB$68),\"\")","v":""},null,null,null,null,""]
[null,null,null,null,null,null,null,null,null,null,null,null,null,null,null,null,null,null,"",null,null,null,null,null,null,null,null,null,null,null,null,null,null,null,null,null,null,null,null,null,null,null,null,null,null,null,null,null,null,null,null,null,null,0,null,null,0,null,null,{"$error":"#DIV/0!"},null,null,"","",null,null,null,0,null,null,0,null,{"$f":"IF(AND(BK57=\"○\",A57=\"児童指導員\"),(Colorsum(W57:BA57,$AA$177)))+IF(AND(BK57=\"○\",A57=\"保育士\"),(Colorsum(W57:BA57,$AA$177)))","v":0},{"$f":"IF(F57=$S$160,IF(Colorsum(W57:BA57,$AA$177)>=1,IF(BQ57=\"あり\",BR57,IF(BN57=\"あり\",BO57,$BB$68))),\"\")","v":""},{"$f":"IF(Colorsum(W57:BA57,$AA$178)>=1,IF(BN57=\"あり\",BO57,$BB$68),\"\")","v":""},{"$f":"IF(Colorsum(W57:BA57,$AA$179)>=1,IF(BN57=\"あり\",BO57,$BB$68),\"\")","v":""},null,null,null,null,""]
[null,null,null,null,null,null,null,null,null,null,null,null,null,null,null,null,null,null,"",null,null,null,null,null,null,null,null,null,null,null,null,null,null,null,null,null,null,null,null,null,null,null,null,null,null,null,null,null,null,null,null,null,null,0,null,null,0,null,null,{"$error":"#DIV/0!"},null,null,"","",null,null,null,0,null,null,0,null,{"$f":"IF(AND(BK58=\"○\",A58=\"児童指導員\"),(Colorsum(W58:BA58,$AA$177)))+IF(AND(BK58=\"○\",A58=\"保育士\"),(Colorsum(W58:BA58,$AA$177)))","v":0},{"$f":"IF(F58=$S$160,IF(Colorsum(W58:BA58,$AA$177)>=1,IF(BQ58=\"あり\",BR58,IF(BN58=\"あり\",BO58,$BB$68))),\"\")","v":""},{"$f":"IF(Colorsum(W58:BA58,$AA$178)>=1,IF(BN58=\"あり\",BO58,$BB$68),\"\")","v":""},{"$f":"IF(Colorsum(W58:BA58,$AA$179)>=1,IF(BN58=\"あり\",BO58,$BB$68),\"\")","v":""},null,null,null,null,""]
[null,null,null,null,null,null,null,null,null,null,null,null,null,null,null,null,null,null,"",null,null,null,null,null,null,null,null,null,null,null,null,null,null,null,null,null,null,null,null,null,null,null,null,null,null,null,null,null,null,null,null,null,null,0,null,null,0,null,null,{"$error":"#DIV/0!"},null,null,"","",null,{"$f":"IF(BC59=0,\"\",IF(BC59>($BB$68*4),\"該当\",))","v":""},null,0,null,null,0,null,{"$f":"IF(AND(BK59=\"○\",A59=\"児童指導員\"),(Colorsum(W59:BA59,$AA$177)))+IF(AND(BK59=\"○\",A59=\"保育士\"),(Colorsum(W59:BA59,$AA$177)))","v":0},{"$f":"IF(F59=$S$160,IF(Colorsum(W59:BA59,$AA$177)>=1,IF(BQ59=\"あり\",BR59,IF(BN59=\"あり\",BO59,$BB$68))),\"\")","v":""},{"$f":"IF(Colorsum(W59:BA59,$AA$178)>=1,IF(BN59=\"あり\",BO59,$BB$68),\"\")","v":""},{"$f":"IF(Colorsum(W59:BA59,$AA$179)>=1,IF(BN59=\"あり\",BO59,$BB$68),\"\")","v":""},null,null,null,null,""]
[null,null,null,null,null,null,null,null,null,null,null,null,null,null,null,null,null,null,"",null,null,null,null,null,null,null,null,null,null,null,null,null,null,null,null,null,null,null,null,null,null,null,null,null,null,null,null,null,null,null,null,null,null,0,null,null,0,null,null,{"$error":"#DIV/0!"},null,null,"","",null,"",null,0,null,null,0,null,{"$f":"IF(AND(BK60=\"○\",A60=\"児童指導員\"),(Colorsum(W60:BA60,$AA$177)))+IF(AND(BK60=\"○\",A60=\"保育士\"),(Colorsum(W60:BA60,$AA$177)))","v":0},{"$f":"IF(F60=$S$160,IF(Colorsum(W60:BA60,$AA$177)>=1,IF(BQ60=\"あり\",BR60,IF(BN60=\"あり\",BO60,$BB$68))),\"\")","v":""},{"$f":"IF(Colorsum(W60:BA60,$AA$178)>=1,IF(BN60=\"あり\",BO60,$BB$68),\"\")","v":""},{"$f":"IF(Colorsum(W60:BA60,$AA$179)>=1,IF(BN60=\"あり\",BO60,$BB$68),\"\")","v":""},null,null,null,null,""]
[null,null,null,null,null,null,null,null,null,null,null,null,null,null,null,null,null,null,"",null,null,null,null,null,null,null,null,null,null,null,null,null,null,null,null,null,null,null,null,null,null,null,null,null,null,null,null,null,null,null,null,null,null,0,null,null,0,null,null,{"$error":"#DIV/0!"},null,null,"","",null,"",null,0,null,null,0,null,{"$f":"IF(AND(BK61=\"○\",A61=\"児童指導員\"),(Colorsum(W61:BA61,$AA$177)))+IF(AND(BK61=\"○\",A61=\"保育士\"),(Colorsum(W61:BA61,$AA$177)))","v":0},{"$f":"IF(F61=$S$160,IF(Colorsum(W61:BA61,$AA$177)>=1,IF(BQ61=\"あり\",BR61,IF(BN61=\"あり\",BO61,$BB$68))),\"\")","v":""},{"$f":"IF(Colorsum(W61:BA61,$AA$178)>=1,IF(BN61=\"あり\",BO61,$BB$68),\"\")","v":""},{"$f":"IF(Colorsum(W61:BA61,$AA$179)>=1,IF(BN61=\"あり\",BO61,$BB$68),\"\")","v":""},null,null,null,null,""]
[null,null,null,null,null,null,null,null,null,null,null,null,null,null,null,null,null,null,"",null,null,null,null,null,null,null,null,null,null,null,null,null,null,null,null,null,null,null,null,null,null,null,null,null,null,null,null,null,null,null,null,null,null,0,null,null,0,null,null,{"$error":"#DIV/0!"},null,null,"","",null,"",null,0,null,null,0,null,{"$f":"IF(AND(BK62=\"○\",A62=\"児童指導員\"),(Colorsum(W62:BA62,$AA$177)))+IF(AND(BK62=\"○\",A62=\"保育士\"),(Colorsum(W62:BA62,$AA$177)))","v":0},{"$f":"IF(F62=$S$160,IF(Colorsum(W62:BA62,$AA$177)>=1,IF(BQ62=\"あり\",BR62,IF(BN62=\"あり\",BO62,$BB$68))),\"\")","v":""},{"$f":"IF(Colorsum(W62:BA62,$AA$178)>=1,IF(BN62=\"あり\",BO62,$BB$68),\"\")","v":""},{"$f":"IF(Colorsum(W62:BA62,$AA$179)>=1,IF(BN62=\"あり\",BO62,$BB$68),\"\")","v":""},null,null,null,null,""]
[null,null,null,null,null,null,null,null,null,null,null,null,null,null,null,null,null,null,"",null,null,null,null,null,null,null,null,null,null,null,null,null,null,null,null,null,null,null,null,null,null,null,null,null,null,null,null,null,null,null,null,null,null,0,null,null,0,null,null,{"$error":"#DIV/0!"},null,null,"","",null,"",null,0,null,null,0,null,{"$f":"IF(AND(BK63=\"○\",A63=\"児童指導員\"),(Colorsum(W63:BA63,$AA$177)))+IF(AND(BK63=\"○\",A63=\"保育士\"),(Colorsum(W63:BA63,$AA$177)))","v":0},{"$f":"IF(F63=$S$160,IF(Colorsum(W63:BA63,$AA$177)>=1,IF(BQ63=\"あり\",BR63,IF(BN63=\"あり\",BO63,$BB$68))),\"\")","v":""},{"$f":"IF(Colorsum(W63:BA63,$AA$178)>=1,IF(BN63=\"あり\",BO63,$BB$68),\"\")","v":""},{"$f":"IF(Colorsum(W63:BA63,$AA$179)>=1,IF(BN63=\"あり\",BO63,$BB$68),\"\")","v":""},null,null,null,null,""]
[null,null,null,null,null,null,null,null,null,null,null,null,null,null,null,null,null,null,"",null,null,null,null,null,null,null,null,null,null,null,null,null,null,null,null,null,null,null,null,null,null,null,null,null,null,null,null,null,null,null,null,null,null,0,null,null,0,null,null,{"$error":"#DIV/0!"},null,null,"","",null,"",null,0,null,null,0,null,{"$f":"IF(AND(BK64=\"○\",A64=\"児童指導員\"),(Colorsum(W64:BA64,$AA$177)))+IF(AND(BK64=\"○\",A64=\"保育士\"),(Colorsum(W64:BA64,$AA$177)))","v":0},{"$f":"IF(F64=$S$160,IF(Colorsum(W64:BA64,$AA$177)>=1,IF(BQ64=\"あり\",BR64,IF(BN64=\"あり\",BO64,$BB$68))),\"\")","v":""},{"$f":"IF(Colorsum(W64:BA64,$AA$178)>=1,IF(BN64=\"あり\",BO64,$BB$68),\"\")","v":""},{"$f":"IF(Colorsum(W64:BA64,$AA$179)>=1,IF(BN64=\"あり\",BO64,$BB$68),\"\")","v":""},null,null,null,null,""]
[null,null,null,null,null,null,null,null,null,null,null,null,null,null,null,null,null,null,"",null,null,null,null,null,null,null,null,null,null,null,null,null,null,null,null,null,null,null,null,null,null,null,null,null,null,null,null,null,null,null,null,null,null,0,null,null,0,null,null,{"$error":"#DIV/0!"},null,null,"","",null,"",null,0,null,null,0,null,{"$f":"IF(AND(BK65=\"○\",A65=\"児童指導員\"),(Colorsum(W65:BA65,$AA$177)))+IF(AND(BK65=\"○\",A65=\"保育士\"),(Colorsum(W65:BA65,$AA$177)))","v":0},{"$f":"IF(F65=$S$160,IF(Colorsum(W65:BA65,$AA$177)>=1,IF(BQ65=\"あり\",BR65,IF(BN65=\"あり\",BO65,$BB$68))),\"\")","v":""},{"$f":"IF(Colorsum(W65:BA65,$AA$178)>=1,IF(BN65=\"あり\",BO65,$BB$68),\"\")","v":""},{"$f":"IF(Colorsum(W65:BA65,$AA$179)>=1,IF(BN65=\"あり\",BO65,$BB$68),\"\")","v":""},null,null,null,null,""]
[null,null,null,null,null,null,null,null,null,null,null,null,null,null,null,null,null,null,"",null,null,null,null,null,null,null,null,null,null,null,null,null,null,null,null,null,null,null,null,null,null,null,null,null,null,null,null,null,null,null,null,null,null,0,null,null,0,null,null,{"$error":"#DIV/0!"},null,null,"","",null,"",null,0,null,null,0,null,{"$f":"IF(AND(BK66=\"○\",A66=\"児童指導員\"),(Colorsum(W66:BA66,$AA$177)))+IF(AND(BK66=\"○\",A66=\"保育士\"),(Colorsum(W66:BA66,$AA$177)))","v":0},{"$f":"IF(F66=$S$160,IF(Colorsum(W66:BA66,$AA$177)>=1,IF(BQ66=\"あり\",BR66,IF(BN66=\"あり\",BO66,$BB$68))),\"\")","v":""},{"$f":"IF(Colorsum(W66:BA66,$AA$178)>=1,IF(BN66=\"あり\",BO66,$BB$68),\"\")","v":""},{"$f":"IF(Colorsum(W66:BA66,$AA$179)>=1,IF(BN66=\"あり\",BO66,$BB$68),\"\")","v":""},null,null,null,null,""]
[null,null,null,null,null,null,null,null,null,null,null,null,null,null,null,null,null,null,null,null,null,null,null,null,null,null,null,null,null,null,null,null,null,null,null,null,null,null,null,null,null,null,null,null,null,null,null,null,null,null,null,null,null,"直接支援職員常勤換算数",null,null,null,null,null,{"$f":"SUM(BH47:BJ66)","v":{"$error":"#DIV/0!"}},null,null,{"$f":"COUNTIF(BK44:BK66,\"×\")","v":0},{"$f":"COUNTIF(BL44:BL66,\"×\")","v":0},{"$f":"COUNTIF(BM44:BM66,\"該当\")","v":0},null,null,null,null,{"$f":"MAX(BR47:BR66)","v":0},null,null,null,{"$f":"IF(MAX(BV47:BV66)=0,$AY$68,MAX(BV47:BV66))","v":0},{"$f":"IF(MAX(BW47:BW66)=0,$AY$68,MAX(BW47:BW66))","v":0},{"$f":"IF(MAX(BX47:BX66)=0,$AY$68,MAX(BX47:BX66))","v":0}]
[null,null,null,null,null,null,null,null,null,null,null,null,null,null,null,null,null,null,null,null,null,null,null,null,null,null,null,null,null,null,null,null,null,null,null,null,null,null,"1週間に当該事業所・施設における常勤職員の勤務すべき時間数",null,null,null,null,null,null,null,null,null,null,null,null,null,null,{"$f":"X9","v":0},null,null,null,null,null,"時間"]
["平均定員超過日数（直近３か月の定員超過日数の平均）",null,null,null,null,null,null,null,null,null,null,null,null,null,{"$f":"AI18/3*92%","v":0},null,"利用児童数（手入力）",null,null,null,null,null,null,null,null,null,null,null,null,null,null,null,null,null,null,null,null,null,null,null,null,null,null,null,null,null,null,null,null,null,null,null,null,"定員超過日数合計",null,null,null,null,null,{"$f":"COUNTIF(W69:BA69,\">=\"&D36+1)","v":0},null,null,{"$f":"IF(O69<=BH69,\"○\",\"×\")","v":"○"}]
["提供形態（1：学校営業日　　2：学校休業日）（手入力）",null,null,null,null,null,null,null,null,null,null,null,null,null,null,null,null,null,null,null,null,null,null,null,null,null,null,null,null,null,null,null,null,null,null,null,null,null,null,null,null,null,null,null,null,null,null,null,null,null,null,null,null,"開所日数合計",null,null,null,null,null,{"$f":"COUNTIF(W70:BA70,\">=\"&D37+1)","v":0},null,null,{"$f":"IF(BH70=X10,\"○\",\"×\")","v":"○"}]
["【非表示にする】入力判定（利用児童数もしくは提供形態のいずれかが未入力の場合、「×」判定）",null,null,null,null,null,null,null,null,null,null,null,null,null,null,null,null,null,null,null,null,null,{"$f":"IF(AND(W69=\"\",W70=\"\"),\"\",IF(OR(W69=\"\",W70=\"\"),\"×\",\"○\"))","v":""},"","","","","","","","","","","","","","","","","","","","","","","","","","","","","","",null,null,null,null,null,null,null,null,null,{"$f":"IF(COUNTIF(W71:BA71,\"×\"),\"×\",\"○\")","v":"○"}]
["【非表示にする】営業時間外の勤務時間を本勤務形態に計上していないか",null,null,null,null,null,null,null,null,null,null,null,null,null,null,null,null,null,null,null,null,null,{"$f":"IF(W69=\"\",\"\",COUNTIFS(W44:W66,\">\"&6,W44:W66,\">\"&W84))","v":""},{"$f":"IF(X69=\"\",\"\",COUNTIFS(X44:X66,\">\"&6,X44:X66,\">\"&X84))","v":""},"","","","","","","","","","","","","","","","","","","","","","","","","","","","",""]
[null,null,null,null,null,null,null,null,null,null,null,"基準人員の必要配置数（『利用児童数』に応じて自動入力）",null,null,null,null,null,null,null,null,null,null,{"$f":"IFERROR(VALUE(IF(W69=\"\",\"\",(IF(W69>=31,\"7\",IF(W69>=26,\"6\",IF(W69>=21,\"5\",IF(W69>=16,\"4\",IF(W69>=11,\"3\",\"2\")))))))),\"\")","v":""},{"$f":"IFERROR(VALUE(IF(X69=\"\",\"\",(IF(X69>=31,\"7\",IF(X69>=26,\"6\",IF(X69>=21,\"5\",IF(X69>=16,\"4\",IF(X69>=11,\"3\",\"2\")))))))),\"\")","v":""},"","","","","","","","","","","","","","","","","","","","","","","","","","","","","",null,null,null,"基準",null,"児童加配",null,"専門"]
[null,null,null,null,null,null,null,null,null,null,null,"基準人員の必要勤務時間数（『利用児童数』に応じて自動入力）",null,null,null,null,null,null,null,null,null,null,{"$f":"IFERROR(IF(W86=\"\",\"\",($J$36*W84)+(W73-$J$36)*W86),\"\")","v":""},{"$f":"IFERROR(IF(X86=\"\",\"\",($J$36*X84)+(X73-$J$36)*X86),\"\")","v":""},"","","","","","","","","","","","","","","","","","","","","","","","","","","","","",null,null,null,null,null,null,null,null,null,{"$f":"SUM(W74:BA74)","v":0}]
[null,null,null,null,null,null,null,null,null,null,null,"基準人員の配置実績数（自動入力）",null,null,null,null,null,null,null,null,null,null,{"$f":"IF(W69=\"\",\"\",(CountifsColor(W47:W66,$AA$177,$S$47:$S$66,\"基準\")))","v":""},"","","","","","","","","","","","","","","","","","","","","","","","","","","","","","","（Ⅰ）\n勤務時間合計",null,null,{"$f":"SUM(W78:BA78)","v":0},null,{"$f":"IF(X23=V161,SUM(W90:BA90),IF(X23=V164,SUM(W90:BA90)+SUM(W91:BA91),IF(X23=V162,SUM(W90:BA90)+SUM(W91:BA91)+SUM(W92:BA92),IF(X23=V163,SUM(W90:BA90)+SUM(W91:BA91)+SUM(W92:BA92)+SUM(W93:BA93),\"\"))))","v":""},null,{"$f":"IF(X24=V167,SUM(W94:BA94),IF(X24=V168,SUM(W94:BA94)+SUM(W95:BA95),\"\"))","v":""}]
[null,null,null,null,null,null,null,null,null,null,null,"【非表示にする】児童指導員又は保育士の配置数（自動入力）",null,null,null,null,null,null,null,null,null,null,{"$f":"IF(W69=\"\",\"\",(CountifsColor(W47:W66,$AA$177,$A$47:$A$66,\"児童指導員\")))+CountifsColor(W47:W66,$AA$177,$A$47:$A$66,\"保育士\")","v":{"$error":"#VALUE!"}},{"$f":"IF(X69=\"\",\"\",(CountifsColor(X47:X66,$AA$177,$A$47:$A$66,\"児童指導員\")))+CountifsColor(X47:X66,$AA$177,$A$47:$A$66,\"保育士\")+CountifsColor(X47:X66,$AA$177,$A$47:$A$66,\"障がい福祉サービス経験者\")","v":{"$error":"#VALUE!"}},{"$error":"#VALUE!"},{"$error":"#VALUE!"},{"$error":"#VALUE!"},{"$error":"#VALUE!"},{"$error":"#VALUE!"},{"$error":"#VALUE!"},{"$error":"#VALUE!"},{"$error":"#VALUE!"},{"$error":"#VALUE!"},{"$error":"#VALUE!"},{"$error":"#VALUE!"},{"$error":"#VALUE!"},{"$error":"#VALUE!"},{"$error":"#VALUE!"},{"$error":"#VALUE!"},{"$error":"#VALUE!"},{"$error":"#VALUE!"},{"$error":"#VALUE!"},{"$error":"#VALUE!"},{"$error":"#VALUE!"},{"$error":"#VALUE!"},{"$error":"#VALUE!"},{"$error":"#VALUE!"},{"$error":"#VALUE!"},{"$error":"#VALUE!"},{"$error":"#VALUE!"},{"$error":"#VALUE!"},{"$error":"#VALUE!"},{"$error":"#VALUE!"}]
[null,null,null,null,null,null,null,null,null,null,null,"【非表示にする】基準の必要配置数の内、児童指導員又は保育士の割合（自動入力）",null,null,null,null,null,null,null,null,null,null,{"$f":"IF(W73=\"\",\"\",W76/W73)","v":""},{"$f":"IF(X73=\"\",\"\",X76/X73)","v":""},"","","","","","","","","","","","","","","","","","","","","","","","","","","","",""]
[null,null,null,null,null,null,null,null,null,null,null,"基準人員の配置実績時間数（自動入力）",null,null,null,null,null,null,null,null,null,null,{"$f":"IF(W69=\"\",\"\",SumIfColor(W47:W66,$AA$177,$S$47:$S$66,$Z$177))","v":""},"","","","","","","","","","","","","","","","","","","","","","","","","","","","","","",null,null,null,null,null,null,null,null,null,{"$f":"SUM(W78:BA78)","v":0},null,null,{"$f":"BK78-BK74","v":0},null,null,{"$f":"BN78-BN74","v":0}]
[null,null,null,null,null,null,null,null,null,null,null,"＜判定①＞利用児童数に応じた基準人員の配置があるか（自動入力）",null,null,null,null,null,null,null,null,null,null,{"$f":"IF(W69=\"\",\"\",IF(W73<=W75,\"○\",\"×\"))","v":""},"","","","","","","","","","","","","","","","","","","","","","","","","","","","","","",null,null,null,null,null,null,null,null,null,{"$f":"IF(COUNTIF(W79:BA79,\"×\"),\"×\",\"○\")","v":"○"}]
[null,null,null,null,null,null,null,null,null,null,null,"＜判定②＞基準人員の内、常勤職員の配置があるか（自動入力）",null,null,null,null,null,null,null,null,null,null,{"$f":"IF(BH70=0,\"\",IF(SUM(BU47:BU66)>=BV67*4,\"【常勤要件○】基準人員として常勤の児童指導員又は保育士が１名以上配置されている\",\"【常勤要件×】基準人員として常勤の児童指導員又は保育士が１名以上配置されていない\"))","v":""},null,null,null,null,null,null,null,null,null,null,null,null,null,null,null,null,null,null,null,null,null,null,null,null,null,null,null,null,null,null,"（Ⅱ）\n水色セルの内、加配算定可能時間に算入できる勤務時間数",null,null,null,null,null,null,null,null,{"$f":"IF(COUNTIF(W80:BA80,\"×\"),\"×\",\"○\")","v":"○"}]
[null,null,null,null,null,null,null,null,null,null,null,"＜判定③＞半数以上は児童指導員又は保育士か（自動入力）",null,null,null,null,null,null,null,null,null,null,{"$f":"IF(W69=\"\",\"\",IF(W77>=50%,\"○\",\"×\"))","v":""},"","","","","","","","","","","","","","","","","","","","","","","","","","","","","","",null,null,null,null,null,null,null,null,null,{"$f":"IF(COUNTIF(W81:BA81,\"×\"),\"×\",\"○\")","v":"○"}]
[null,null,null,null,null,null,null,null,null,null,null,"＜判定④＞利用児童数に応じた必要勤務時間数を配置できているか（自動入力）",null,null,null,null,null,null,null,null,null,null,{"$f":"IF(W69=\"\",\"\",IF(W74<=W78,\"○\",\"×\"))","v":""},"","","","","","","","","","","","","","","","","","","","","","","","","","","","","","",null,null,null,null,null,null,null,null,null,{"$f":"IF(COUNTIF(W82:BA82,\"×\"),\"×\",\"○\")","v":"○"}]
["＜最終判定＞最低人員基準を満たしているか",null,null,null,null,null,null,null,null,null,null,null,null,null,null,null,null,null,null,null,null,null,{"$f":"IF(W69=\"\",\"\",(IF(AND(W79=\"○\",$W$80=\"【常勤要件○】基準人員として常勤の児童指導員又は保育士が１名以上配置されている\",W81=\"○\",W82=\"○\"),\"○\",\"×\")))","v":""},"","","","","","","","","","","","","","","","","","","","","","","","","","","","","","","(Ⅰ)+(Ⅱ)　\n加配算定\n可能時間",null,null,null,null,{"$f":"IF(BG75=\"\",\"\",BG75+BG80)","v":""},null,{"$f":"IF(BI75=\"\",\"\",BI75+BI80)","v":""},null,{"$f":"IF(COUNTIF(W83:BA83,\"×\"),\"×\",\"○\")","v":"○"}]
["営業時間",null,null,null,null,null,null,null,null,null,null,null,null,"授業終了後",null,null,null,null,1,{"$f":"X12","v":0},"時間",null,{"$f":"IF(W70=\"\",\"\",VLOOKUP(W70,$S$84:$T$85,2,FALSE))","v":""},{"$f":"IF(X70=\"\",\"\",VLOOKUP(X70,$S$84:$T$85,2,FALSE))","v":""},"","","","","","","","","","","","","","","","","","","","","","","","","","","","",""]
[null,null,null,null,null,null,null,null,null,null,null,null,null,"学校休業日",null,null,null,null,2,{"$f":"X13","v":0},"時間"]
["サービス提供時間",null,null,null,null,null,null,null,null,null,null,null,null,"授業終了後",null,null,null,null,1,{"$f":"X14","v":0},"時間",null,{"$f":"IF(W70=\"\",\"\",VLOOKUP(W70,$S$86:$T$87,2,FALSE))","v":""},{"$f":"IF(X70=\"\",\"\",VLOOKUP(X70,$S$86:$T$87,2,FALSE))","v":""},"","","","","","","","","","","","","","","","","","","","","","","","","","","","","","加配加算\n要件判定",null,null,null,null,{"$f":"IF(BG75=\"\",\"\",IF(BG83>=($BB$68*4),\"○\",\"×\"))","v":""},null,{"$f":"IF(BI75=\"\",\"\",IF(BI83>=($BB$68*4),\"○\",\"×\"))","v":""}]
[null,null,null,null,null,null,null,null,null,null,null,null,null,"学校休業日",null,null,null,null,2,{"$f":"X15","v":0},"時間"]
["水色で塗りつぶしされたセル（＝基準人員）の内、加算算定可能時間に算入できる時間数がある場合「○」を表示",null,null,null,null,null,null,null,null,null,null,null,null,null,null,null,null,null,null,null,null,null,{"$f":"IF(W83=\"×\",\"\",IF(W75>W73,IF(W78-W74>0,\"○\",\"\"),\"\"))","v":""},"","","","","","","","","","","","","","","","","","","","","","","","","","","","","",""]
[]
["(Ⅰ）加配算定可能時間\n【赤色セルor緑色セル】",null,null,null,null,null,null,null,null,null,null,null,null,"児童指導員等加配",null,null,null,null,null,"専門職員（理学療法士等）",null,null,{"$f":"IF(W69=\"\",\"\",IF(W83=\"×\",\"\",SumIfColor(W47:W66,$AA$178,$CC$47:$CC$66,$V$161)))","v":""},"","","","","","","","","","","","","","","","","","","","","","","","","","","","","","",{"$f":"SUM(W90:BA90)","v":0}]
[null,null,null,null,null,null,null,null,null,null,null,null,null,null,null,null,null,null,null,"専門職員（保育士等）",null,null,{"$f":"IF(W69=\"\",\"\",IF(W83=\"×\",\"\",SumIfColor(W47:W66,$AA$178,$CC$47:$CC$66,$V$164)))","v":""},"","","","","","","","","","","","","","","","","","","","","","","","","","","","","","",0]
[null,null,null,null,null,null,null,null,null,null,null,null,null,null,null,null,null,null,null,"児童指導員等",null,null,{"$f":"IF(W69=\"\",\"\",IF(W83=\"×\",\"\",SumIfColor(W47:W66,$AA$178,$CC$47:$CC$66,$V$162)))","v":""},"","","","","","","","","","","","","","","","","","","","","","","","","","","","","","",0]
[null,null,null,null,null,null,null,null,null,null,null,null,null,null,null,null,null,null,null,"その他従業者",null,null,{"$f":"IF(W69=\"\",\"\",IF(W83=\"×\",\"\",SumIfColor(W47:W66,$AA$178,$CC$47:$CC$66,$V$163)))","v":""},"","","","","","","","","","","","","","","","","","","","","","","","","","","","","","",0]
[null,null,null,null,null,null,null,null,null,null,null,null,null,"専門的支援加算",null,null,null,null,null,"理学療法士等",null,null,{"$f":"IF(W69=\"\",\"\",IF(W83=\"×\",\"\",SumIfColor(W47:W66,$AA$179,$CC$47:$CC$66,$V$161)))","v":""},"","","","","","","","","","","","","","","","","","","","","","","","","","","","","","",0]
[null,null,null,null,null,null,null,null,null,null,null,null,null,null,null,null,null,null,null,"５年以上保育士or児童指導員",null,null,{"$f":"IF(W69=\"\",\"\",IF(W83=\"×\",\"\",(SumIfColor(W47:W66,$AA$179,$CC$47:$CC$66,$V$164))+(SumIfColor(W47:W66,$AA$179,$CC$47:$CC$66,$V$162))))","v":""},"","","","","","","","","","","","","","","","","","","","","","","","","","","","","","",0]
["（Ⅱ）水色セルの内、加配算定可能時間に算入できる勤務時間数",null,null,null,null,null,null,null,null,null,null,null,null,"児童指導員等加配",null,null,null,null,null,"専門職員（理学療法士等）",null,null,null,null,null,null,null,null,null,null,null,null,null,null,null,null,null,null,null,null,null,null,null,null,null,null,null,null,null,null,null,null,null,{"$f":"SUM(W96:BA96)","v":0}]
[null,null,null,null,null,null,null,null,null,null,null,null,null,null,null,null,null,null,null,"専門職員（保育士等）",null,null,null,null,null,null,null,null,null,null,null,null,null,null,null,null,null,null,null,null,null,null,null,null,null,null,null,null,null,null,null,null,null,0]
[null,null,null,null,null,null,null,null,null,null,null,null,null,null,null,null,null,null,null,"児童指導員等",null,null,null,null,null,null,null,null,null,null,null,null,null,null,null,null,null,null,null,null,null,null,null,null,null,null,null,null,null,null,null,null,null,0]
[null,null,null,null,null,null,null,null,null,null,null,null,null,null,null,null,null,null,null,"その他従業者",null,null,null,null,null,null,null,null,null,null,null,null,null,null,null,null,null,null,null,null,null,null,null,null,null,null,null,null,null,null,null,null,null,0]
[null,null,null,null,null,null,null,null,null,null,null,null,null,"専門的支援加算",null,null,null,null,null,"理学療法士等",null,null,null,null,null,null,null,null,null,null,null,null,null,null,null,null,null,null,null,null,null,null,null,null,null,null,null,null,null,null,null,null,null,0]
[null,null,null,null,null,null,null,null,null,null,null,null,null,null,null,null,null,null,null,"５年以上保育士or児童指導員",null,null,null,null,null,null,null,null,null,null,null,null,null,null,null,null,null,null,null,null,null,null,null,null,null,null,null,null,null,null,null,null,null,0]
[]
["＜注意事項＞"]
["注１　本表は支援の種類ごとに作成してください。"]
["注２　＊欄は、当該月の曜日を記入してください。"]
["注３　「施設等区分」「主たる障害j種別」欄は、報酬算定上の区分を記載し、「該当する体制等」欄は、別紙「障害児通所・入所給付費等の算定に係る体制等状況一覧表」に\n　　掲げる体制加算等の内容を記載してください（この際、別紙「障害児通所・入所給付費等の算定に係る体制等状況一覧表」の記載内容と同様に記載してください。）"]
[]
["注４　「職種」欄は、直接サービス提供職員に係る職種を記載し、「勤務形態」欄は、①常勤・専従、②常勤・兼務、③非常勤・専従、④非常勤・兼務のいずれかを記載\n　　するとともに、加算等に係る職員の加配を区分した上、それぞれ1日あたりの勤務時間を記載してください。（事務員等以外は全て記入して下さい。）"]
[]
["＜注意事項＞"]
["注１　本表は支援の種類ごとに作成してください。"]
["注２　＊欄は、当該月の曜日を記入してください。"]
["注３　「施設等区分」「主たる障害j種別」欄は、報酬算定上の区分を記載し、「該当する体制等」欄は、別紙「障害児通所・入所給付費等の算定に係る体制等状況一覧表」に\n　　掲げる体制加算等の内容を記載してください（この際、別紙「障害児通所・入所給付費等の算定に係る体制等状況一覧表」の記載内容と同様に記載してください。）"]
[]
["注４　「職種」欄は、直接サービス提供職員に係る職種を記載し、「勤務形態」欄は、①常勤・専従、②常勤・兼務、③非常勤・専従、④非常勤・兼務のいずれかを記載\n　　するとともに、加算等に係る職員の加配を区分した上、それぞれ1日あたりの勤務時間を記載してください。（事務員等以外は全て記入して下さい。）"]
[]
["注５　算出に当たっては、小数点以下第２位を切り捨ててください。"]
["注６　当該事業所・施設に係る組織体制図を添付してください。"]
["注７　各事業所・施設において使用している勤務割表等（変更の届出の場合は変更後の予定勤務割表等）により、届出の対象となる従業者の職種、勤務形態、氏名、当該\n　　業務の勤務時間及び看護職員と介護職員の配置状況（関係する場合）が確認できる場合はその書類をもって添付書類として差し支えありません。"]
[]
[null,null,"基準２人目をサービス提供時間とした場合の必要勤務時間数",null,null,null,null,null,null,null,null,null,null,null,null,null,null,null,null,null,null,null,{"$f":"IFERROR(IF(W86=\"\",\"\",W84+((W73-1)*W86)),\"\")","v":""},{"$f":"IFERROR(IF(X86=\"\",\"\",X84+((X73-1)*X86)),\"\")","v":""},"","","","","","","","","","","","","","","","","","","","","","","","","","","","","","↓勤務時間数が足りていない場合の欠如日数"]
[null,null,"利用児童数に応じた必要勤務時間数（２人目以降サービス提供時間）を配置できているか（自動入力）",null,null,null,null,null,null,null,null,null,null,null,null,null,null,null,null,null,null,null,{"$f":"IF(W69=\"\",\"\",IF(W121<=W78,\"○\",\"×\"))","v":""},"","","","","","","","","","","","","","","","","","","","","","","","","","","","","","",{"$f":"COUNTIF(W122:BA122,\"×\")","v":0}]
[]
["管理者・従業者の勤務の体制及び勤務形態一覧表（児童発達支援【センターを除く】・放課後等デイサービス用）　エラー判定シート"]
["判定",null,"エラーメッセージ"]
[{"$f":"IF(X3=\"\",\"\",IF(AK30=20,\"\",IF(AK30<1,\"○\",\"×\")))","v":""},null,"①　事前入力シートに入力漏れがある場合に発生するエラー"]
[null,null,"事前入力シートに未入力の項目があります。（AK列）に「←入力されていません」とエラーメッセージが表示されている項目について入力してください。\n\n＜主なエラーの原因＞\n（１）【Ⅲ　事業所の定員超過日数について】のⅠ～Ⅲが0日のため、入力していない。　⇒　０日の場合は「０」と入力してください。　\n\n（２）【Ⅳ　事業所の加算情報について】の（１）～（7）は加算を算定していないため、入力していない。　⇒　算定していない加算については、「無し」と入力してください。"]
[{"$f":"IF(COUNTBLANK(W44:BA66)=713,\"\",IF(BK67<1,\"○\",\"×\"))","v":""},null,"②-1　常勤要件を満たしていない職員がいる場合に発生するエラー"]
[null,null,"枠外（BH列）の【常勤判定】の欄において、「×」となっている職員について、常勤要件を満たしていません。\n\n＜主なエラーの原因＞\n（１）対象職員について、（F～H列）の【常勤又は非常勤】の欄が誤って「常勤」となっている。　⇒　「非常勤」に訂正してください。\n\n（２）対象職員について、常勤職員としての配置を想定しているが、当該職員の勤務時間数が当該事業所の常勤職員が勤務すべき時間数に達していない。　⇒　（BE～BG列）の【常勤換算後の人数】の欄が1.0になるまで、勤務時間を増やしてください。\n（※ただし、所定時間外労働又は法定時間外労働を問わず、時間外労働を前提とした勤務体制を認めることはできないため、上記の勤務表に算入することができる勤務時間数は、就業規則及び個別の雇用契約上に定めている勤務時間数までとなります。【指定基準省令第２条　解釈通知第二の２　用語の定義　「勤務延べ時間数」より】\n\n　なお、就業規則が適用されない法人代表者であっても上記の考え方は適用されるため、仮に月１８０時間前後勤務する実態がある場合でも、就業規則において、当該事業所の常勤職員の勤務すべき時間数が月１６０時間と定められている場合は、上記の勤務表において、月１６０時間までの勤務時間しか算入することができません。）\n"]
[{"$f":"IF(COUNTBLANK(W44:BA66)=713,\"\",IF(BL67<1,\"○\",\"×\"))","v":""},null,"②-2　常勤要件を満たしているのに、非常勤とされている職員がいる場合に発生するエラー"]
[null,null,"枠外（BI列）の【非常勤判定】の欄において、「×」となっている職員については、常勤要件を満たしています。\n\n＜主なエラーの原因＞\n（１）対象職員について、（F～H列）の【常勤又は非常勤】の欄が誤って「非常勤」となっている。　⇒　「常勤」に訂正してください。\n\n（２）対象職員が非常勤であることに間違いはないが、勤務延べ時間数に誤りがある。（多く配置しすぎている等） ⇒　誤って入力している勤務時間を訂正してください。\n"]
[null,null,"≪②-1及び②-2　解説　１　≫\n指定基準省令上の「常勤」は当該事業所における勤務時間が、当該事業所において定められている常勤職員が勤務すべき時間数に達していることを指します。\n正社員とパートといった雇用形態によって判断するわけではなく、あくまで勤務時間数によって判断しますので、会社としては正社員で雇用しているが、指定基準省令上では「非常勤」となったり、反対に会社としてはパートとして雇用しているが、指定基準省令上では、「常勤」となるケースもあります。\n\n≪②-1及び②-2　解説　２　≫\n常勤の要件判定は、「当該事業所における勤務時間」で考えることから、複数の事業所間での兼務は、常勤ではなく非常勤（放課後等デイサービスと保育所等訪問支援の多機能型事業所の児童発達支援管理責任者等は除く）とし、時間を分けてそれぞれの事業所における勤務形態一覧表を設定するものとする。例えば、同一法人内の放課後等デイサービス事業所Aと放課後等デイサービス事業所Bの児童指導員として、それぞれ月80時間ずつ従事する者は、双方の事業所において「非常勤」として扱います。"]
[null,null,"③　所定時間外労働時間又は法定時間外労働時間が発生している職員がいる場合に発生するエラー"]
[null,null,"枠外（BJ列）の【所定時間外もしくは法定時間外】の欄において、「該当」となっている職員について、当該事業所において定められている常勤職員が勤務すべき時間数を超えて勤務しています。（＝会社の就業規則上又は法令上、勤務が可能な時間数を超えている）\n\n＜主なエラーの原因＞\n（１）対象職員について、勤務延べ時間数に誤りがある。（多く配置しすぎている等）　⇒　誤って入力している勤務時間を訂正してください。\n\n（２）法人代表者であるため、営業日については毎日配置している　⇒　従業者１人につき、上記勤務表上の勤務延べ時間数に算入することができる時間数は、当該事業所において定められている常勤職員が勤務すべき時間数が上限ですので、　枠外（BJ列）の【所定時間外もしくは法定時間外】の欄において、「該当」が消えるまで、勤務時間を減らしてください。"]
[null,null,"④-1　提供形態が事業所の開所日数分入力されていない場合に発生するエラー"]
[null,null,"事前入力シートのⅠの（８）【開所日数（月）】の欄に記載されている日数と（BE～BG70セル）【開所日数合計】の欄の日数が一致していません。\n\n＜主なエラーの原因＞\n（１）事業所の運営規程において定める開所日のうち、（70行）の【提供形態】の欄が未入力となっている日がある。　⇒　事業所の開所日については、全て提供形態を入力してください。　（学校営業日：「1」と入力　　学校休業日：「２」と入力）\n\n（２）事前入力シートのⅠの（８）【開所日数（月）】の欄に記載されている日数に誤りがある。　⇒　誤って入力している日数を訂正してください。\n"]
[{"$f":"IF(COUNTBLANK(W44:BA66)=713,\"\",IF(BK69=\"○\",\"○\",\"×\"))","v":""},null,"④-2　利用児童数が事業所の利用定員を超過している日数が、平均定員超過日数を超えていない場合に発生するエラー"]
[null,null,"（BE～BG69セル）【定員超過日数合計】の欄の日数が（O～P69セル）【平均定員超過日数（直近３か月の定員超過日数の平均）】の欄に記載されている日数以上となっていません。\n\n＜主なエラーの原因＞\n（１）事前入力シートのⅢの（１）～（３）【直近３か月の定員超過日数】の欄に記載されている日数に誤りがある。　⇒　誤って入力している日数を訂正してください。\n\n（２）（69行）の【利用児童数】の欄に誤りがある。⇒　（69行）の【利用児童数】の欄について、（BE～BG69セル）【定員超過日数合計】の欄の日数が（O～P6８セル）【平均定員超過日数（直近３か月の定員超過日数の平均）】の欄に記載されている日数以上となるまで、利用児童数を調整してください。\n\n≪利用者数の調整方法について≫\nこれまでの利用実績から、当該月の４週の内、定員超過が見込まれる曜日等の利用者数について、定員を超過した利用者数を入力していき、定員超過日数合計が、平均定員超過日数と一致するまで、調整する。\n【例】平均定員超過日数（直近３か月の定員超過日数の平均）が４日であり、利用実績から毎週水曜日について、1名の定員超過が見込まれるため、毎週水曜日について、利用児童数を11名とし、定員超過日数合計が、平均定員超過日数と一致するよう、調整した。\n\n\n\n\n"]
[{"$f":"IF(COUNTBLANK(W44:BA66)=713,\"\",IF(COUNTIF(W79:BA79,\"×\")>0,\"×\",\"○\"))","v":""},null,"⑤　利用児童数に応じた基準人員の配置されていない場合に発生するエラー"]
[null,null,"（79行）の【＜判定①＞利用児童数に応じた基準人員の配置があるか】の欄について、「×」の日があります。\n\n＜主なエラーの原因＞\n（１）利用者の合計数が以下の区分に応じてそれぞれに定める数以上、基準人員（児童指導員・保育士等）を配置できていない。　⇒（S列）　【基準人員可否】の欄において「基準」となっている人員について、当該日の（７3行）【基準人員の必要配置数】の欄に記載されている数以上配置してください。\n\n①障がい児の数が10までのもの：2以上\n②障がい児の数が10を越えるもの：2に、障がい児の数が10を越えて5又はその端数を増すごとに1を加えて得た数以上（障がい児の数が１１人～１５人までの場合、３人　等）\n\n（２）現在、配置している職員の職種欄（A～E列）について誤りがある。　⇒　誤って入力している職種を訂正してください。"]
[{"$f":"IF(COUNTBLANK(W44:BA66)=713,\"\",IF(COUNTIF(W80:BA80,\"×\")>0,\"×\",\"○\"))","v":""},null,"⑥　基準人員の内、常勤職員が配置されていない場合に発生するエラー"]
[null,null,"（80行）の【＜判定②＞基準人員の内、常勤職員の配置があるか】の欄について、「【常勤要件×】基準人員として常勤の児童指導員又は保育士が１名以上配置されていない」と表示されています。\n\n＜主なエラーの原因＞\n（１）基準の人員として配置している児童指導員又は保育士又のうち、１名以上常勤を配置できていない。　⇒　（F～H列）の【常勤又は非常勤】の欄において「常勤」となっている児童指導員又は保育士について、１名以上配置してください。\n\n（２）（F～H列）の【常勤又は非常勤】の欄において「常勤」となっている児童指導員又は保育士について、基準人員としての勤務時間（青色着色セル）の合計が、当該事業所において定められている常勤職員が勤務すべき時間数に達していない。　⇒　（80行）の【＜判定②＞基準人員の内、常勤職員の配置があるか】の欄が、「【常勤要件○】基準人員として常勤の児童指導員又は保育士が１名以上配置されている」という表示に切り替わるまで、（F～H列）の【常勤又は非常勤】の欄において「常勤」となっている児童指導員又は保育士の基準人員としての勤務時間（青色着色セル）を勤務時間数を増やしてください\n\n"]
[{"$f":"IF(COUNTBLANK(W44:BA66)=713,\"\",IF(COUNTIF(W81:BA81,\"×\")>0,\"×\",\"○\"))","v":""},null,"⑦　基準人員の内、半数以上児童指導員又は保育士が配置されていない場合に発生するエラー"]
[null,null,"（８1行）の【＜判定③＞半数以上は児童指導員又は保育士か】の欄について、「×」の日があります。\n\n＜主なエラーの原因＞\n（１）当該日の基準人員の内、半数以上児童指導員又は保育士を配置できていない。　⇒　児童指導員又は保育士又はを当該日の（７3行）【基準人員の必要配置数】の欄に記載されている数に５０％を乗じて得た数（端数切り上げ）以上配置してください。\n\n（２）現在、配置している職員の職種欄（A～E列）について誤りがある。　⇒　誤って入力している職種を訂正してください。"]
[{"$f":"IF(COUNTBLANK(W44:BA66)=713,\"\",IF(COUNTIF(W82:BA82,\"×\")>0,\"×\",\"○\"))","v":""},null,"⑧　基準人員の勤務時間が、営業時間を通じて配置されていない場合に発生するエラー"]
[null,null,"（８2行）の【＜判定④＞利用児童数に応じた必要勤務時間数を配置できているか】の欄について、「×」の日があります。\n\n＜主なエラーの原因＞\n（１）基準人員の勤務時間が、営業時間を通じて配置されていない　⇒　（S列）　【基準人員可否】の欄において「基準」となっている人員の勤務時間数の合計が（74行）の【基準人員の必要勤務時間数】に記載されている時間以上となるよう配置してください。\n\n（２）利用定員を超過しない見込みの日であるが、（69行）の利用児童数が利用定員を超過した数になっている。　　⇒　利用児童数を当該事業所の運営規程に定める利用定員以下に訂正してください。\n\n（３）学校営業日であるが、（70行）の提供形態が「２」になっている。　　⇒　提供形態を「１」に訂正してください。\n\n（４）事前入力シートの【Ⅱ　事業所の常勤職員の実働時間及びサービス提供時間について】の（１）～（４）のいずれかの項目に誤りがある。　⇒　誤って入力している項目を訂正してください。"]
[{"$f":"COUNTIF(A126:B146,\"×\")","v":0}]
[]
[]
[]
[]
[]
[]
[]
[]
[]
["以下は，削除しないでください",null,null,null,null,null,null,null,null,null,null,null,null,null,null,null,null,null,null,null,null,null,null,null,null,null,null,null,null,null,null,null,"h"]
[null,null,null,null,null,null,null,null,null,null,null,null,null,null,null,null,null,null,null,null,null,null,null,null,null,null,null,null,null,null,null,null,30]
[null,null,null,null,null,null,null,null,null,null,null,null,null,null,null,null,null,"↓障がい福祉サービス経験者のみOKの場合の基準人員",null,null,null,null,null,null,null,null,null,null,null,null,null,null,31,null,"↓曜日自動計算用"]
["管理者",null,null,null,null,null,null,null,null,"児童指導員","児童指導員等",null,null,null,null,null,null,"児童指導員","常勤","社会福祉士",null,"なし",null,null,null,"放課後等デイサービス",null,null,null,null,null,"1",32,"日",{"$f":"DATE(2018+Z7,AC7,1)","v":"2017-12-01"}]
["児童発達支援管理責任者",null,null,null,null,null,null,null,null,"保育士","専門職員（保育士）",null,null,null,null,null,null,"保育士","非常勤","介護福祉士",null,"専門職員（理学療法士等）",null,null,null,"児童発達支援",null,null,null,null,null,"2",33,"月",{"$f":"WEEKDAY(AI160,2)","v":5}]
["管理者兼児童発達支援管理責任者",null,null,null,null,null,null,null,null,"理学療法士","専門職員（理学療法士等）",null,null,null,null,null,null,"理学療法士",null,"精神保健福祉士",null,"児童指導員等",null,null,null,null,null,null,null,null,null,"3",34,"火",{"$f":"IF(AI161>0,IF(AI161=1,\"月\",IF(AI161=2,\"火\",IF(AI161=3,\"水\",IF(AI161=4,\"木\",IF(AI161=5,\"金\",IF(AI161=6,\"土\",\"日\")))))),\"\")","v":"金"}]
["嘱託医",null,null,null,null,null,null,null,null,"作業療法士","専門職員（理学療法士等）",null,null,null,null,null,null,"作業療法士","専従","公認心理士",null,"その他従業者",null,null,null,null,null,null,null,null,null,"4",35,"水","↓祝日判定用"]
["栄養士",null,null,null,null,null,null,null,null,"言語聴覚士","専門職員（理学療法士等）",null,null,null,null,null,null,"言語聴覚士","兼務","常勤かつ3年以上",null,"専門職員（保育士）",null,null,null,"重症心身障害児以外",null,null,null,null,null,"5",36,"木",{"$f":"YEAR(AI160)","v":2017}]
["管理栄養士",null,null,null,null,null,null,null,null,"心理指導担当職員","専門職員（理学療法士等）",null,null,null,null,null,null,"心理指導担当職員",null,null,null,null,null,null,null,"重症心身障害児",null,null,null,null,null,"6",37,"金"]
[null,null,null,null,null,null,null,null,null,"看護職員","その他従業者",null,null,null,null,null,null,"障がい福祉サービス経験者","○",null,null,"なし",null,null,null,null,null,null,null,null,null,"7",38,"土"]
[null,null,null,null,null,null,null,null,null,"障がい福祉サービス経験者","その他従業者",null,null,null,null,null,null,null,"×",null,null,"理学療法士等",null,null,null,null,null,null,null,null,null,"8",39]
[null,null,null,null,null,null,null,null,null,"相談支援専門員",null,null,null,null,null,null,null,null,null,null,null,"５年以上保育士又は児童指導員等（児発のみ）",null,null,null,"重症心身障害児及び難聴児が選択された場合",null,null,null,null,null,"9",40]
[null,null,null,null,null,null,null,null,null,"指導員","その他従業者",null,null,null,null,null,null,null,null,null,null,null,null,null,null,{"$f":"IF(OR(AB36=Z165,AB36=Z166),TRUE,FALSE)","v":false},null,null,null,null,null,10,41]
[null,null,null,null,null,null,null,null,null,"送迎員（送迎のみを行う場合）",null,null,null,null,null,null,null,null,null,null,null,"なし",null,null,null,null,null,null,null,null,null,11,42]
[null,null,null,null,null,null,null,null,null,"事務員",null,null,null,null,null,null,null,null,null,null,null,"Ⅰ",null,null,null,"平成",null,null,null,null,null,12,43]
[null,null,null,null,null,null,null,null,null,"その他（　　　　　）","その他従業者",null,null,null,null,null,null,null,null,null,null,"Ⅱ",null,null,null,"令和",null,null,null,null,null,null,44]
[null,null,null,null,null,null,null,null,null,null,null,null,null,null,null,null,null,null,null,null,null,"Ⅲ"]
[null,null,null,null,null,null,null,null,null,"2021-04-01",null,null,null,null,null,null,null,null,null,null,null,null,null,null,null,"児童加配"]
[null,null,null,null,null,null,null,null,null,"↓強行に「○」がついている場合のプルダウンリスト",null,null,null,null,null,null,null,null,null,null,null,"なし",null,null,null,"専門加配"]
[null,null,null,null,null,null,null,null,null,"児童指導員","児童指導員等",null,null,null,null,null,null,null,null,null,null,"あり"]
[null,null,null,null,null,null,null,null,null,"保育士","専門職員（保育士）",null,null,null,null,null,null,null,null,null,null,null,null,null,null,"基準"]
[null,null,null,null,null,null,null,null,null,"理学療法士","専門職員（理学療法士等）",null,null,null,null,null,null,null,null,null,null,"なし",null,null,null,"基準外"]
[null,null,null,null,null,null,null,null,null,"作業療法士","専門職員（理学療法士等）",null,null,null,null,null,null,null,null,null,null,"Ⅰ"]
[null,null,null,null,null,null,null,null,null,"言語聴覚士","専門職員（理学療法士等）",null,null,null,null,null,null,null,null,null,null,"Ⅱ"]
[null,null,null,null,null,null,null,null,null,"心理指導担当職員","専門職員（理学療法士等）"]
[null,null,null,null,null,null,null,null,null,"看護職員","児童指導員等"]
[null,null,null,null,null,null,null,null,null,"障がい福祉サービス経験者","児童指導員等"]
[null,null,null,null,null,null,null,null,null,"相談支援専門員"]
[null,null,null,null,null,null,null,null,null,"指導員","児童指導員等"]
[null,null,null,null,null,null,null,null,null,"送迎員（送迎のみを行う場合）"]
[null,null,null,null,null,null,null,null,null,"事務員"]
[null,null,null,null,null,null,null,null,null,"その他（　　　　　）","児童指導員等"]

{"sheet":"各種ボタン解説","index":2,"n_rows":17,"n_cols":2,"rows_kept":17,"cut":false,"hidden":false,"merged":[[2,0,4,0],[5,0,7,0],[8,0,12,0]]}
[]
[null,"勤務形態一覧表上の［勤務延べ時間数欄］の内、基準人員の勤務時間を「青」、児童指導員等加配加算対象者（＝加配対象者欄において［児童加配］を選択している従業員）の勤務時間を「赤」、専門的支援加算対象者（＝加配対象者欄において［専門加配］を選択している従業者）の勤務時間を「緑」に塗りつぶします。"]
[null,"勤務形態一覧表上の［利用児童数欄］に、当該事業所の運営規定に定める利用定員が４週２８日分自動入力されます。"]
[null,"※１　勤務形態一覧表上の［平均定員超過日数欄］が１日以上の場合は、定員超過が見込まれる日について、利用児童数を調整ください。"]
[null,"※２　４週２８日分自動入力されますので、週５日または週６日開所の事業所の場合は、営業していない日の利用児童数を空白に訂正してください。"]
[null,"勤務形態一覧表上の［提供形態欄］に、曜日に応じた提供形態が４週２８日分自動入力されます。　【月曜日～金曜日：「１」　土曜日～日曜日：「２」】　"]
[null,"※１　祝日等は反映されませんので、訂正入力して、調整ください。"]
[null,"※２　４週２８日分自動入力されますので、週５日または週６日開所の事業所の場合は、営業していない日の提供形態を空白に訂正してください。"]
[null,"勤務形態一覧表上の［勤務延べ時間数欄］のセルを選択した状態で本ボタンを押すと、以下の区分に応じて塗りつぶしされます。"]
[null,"基準人員対象者塗りつぶしボタン：：青"]
[null,"児童指導員等加配加算対象者塗りつぶしボタン：赤"]
[null,"専門的支援加算加配対象者塗りつぶしボタン：緑"]
[null,"「基準及び加配審査ボタン」は４週２８日分の全範囲を対象として塗りつぶす処理ですが、本ボタンは選択しているセルのみを塗りつぶしできるため、「基準及び加配審査ボタン」で塗りつぶししたあとに、人員基準又は加配加算の要件を満たしていない日の微調整の際に活用ください。"]
[null,"勤務形態一覧表上の［勤務延べ時間数欄］のセルを選択した状態で本ボタンを押すと、オレンジ色に塗りつぶしされます。\n本ボタンにより塗りつぶした勤務延べ時間数は、人員基準可否を判定する員数や加配加算算定可能時間等には含まれませんが、5週の合計（勤務延べ時間数の合計）には反映されます。\n常勤職員の有給日については、当初勤務する予定だった時間を入力したうえで、本ボタンにより塗りつぶししてください。"]
[null,"勤務形態一覧表上の［勤務延べ時間数欄］の内、塗りつぶしされているセルについて、元の色（薄黄色）に塗り直しします。"]
[null,"勤務形態一覧表上の［勤務延べ時間数欄］の内、塗りつぶしされたセルを選択した状態で本ボタンを押すと、元の色（薄黄色）に塗り直しします。「塗り直しボタン［全範囲］」は４週２８日分の全範囲を対象として、塗りつぶしされているセルを、元の色（薄黄色）に塗りつぶす処理ですが、本ボタンは選択しているセルのみを塗りつぶしできるため、誤って塗りつぶししてしまった場合等に、活用ください。"]
[null,"届出に必要な勤務表箇所のみを印刷します。届出の際は、本ボタン入力後に出力した「勤務形態一覧表」をご提出ください。"]

{"sheet":"プルダウンリスト","index":3,"n_rows":5,"n_cols":3,"rows_kept":5,"cut":false,"hidden":true,"merged":[]}
[]
[null,"専門職員（理）","1割超え"]
[null,"児童指導員等","1割未満"]
[null,"その他従業者"]
[null,"専門職員（保）"]